Workbook

Sheet 1. Начальные данные
U1: Версия: | V1: 2.0
A12: Отчет по внутреннему муниципальному финансовому контролю
A16: Уровень бюджета: | D16: Муниципальный | L16: =D16 -> Муниципальный
A17: Наименование учреждения: | D17: ФУ Администрации МР Нуримановский район РБ | L17: =D17 -> ФУ Администрации МР Нуримановский район РБ
A18: Дата: | D18: 2017-06-30 | F18: 2017 | L18: =D18 -> 42916 | M18: =F18 -> 2017
A20: Исполнитель: | D20: Гайнетдинова Олеся Николаевна | K20: Vers.1.2
A21: Рабочий телефон: | D21: 8-34776-2-21-02
A22: Мобильный телефон: | D22: 8-961-370-72-72
C26: =IF(N30=0,"","Ошибки:") ->  | D26: =O26 ->  | M26: =IF(OR(D16="Государственный", D16="Муниципальный"), "","Не выбран уровень бюджета! "&CHAR(10)) ->  | N26: =IF(OR(D16="Государственный", D16="Муниципальный"), "",1) ->  | O26: =CONCATENATE(M26,M27,M28,M29) -> 
M27: =IF(OR(D17=0, D17="[выберите учреждение]"), "Не выбрано наименование учреждения! "&CHAR(10),"") ->  | N27: =IF(OR(D17=0, D17="[выберите учреждение]"), 1,"") -> 
M28: =IF(OR(D18=0, D18="[выберите дату]",F18=0, F18="[выберите год]"), "Не выбрана дата! "&CHAR(10),"") ->  | N28: =IF(OR(D18=0, D18="[выберите дату]",F18=0, F18="[выберите год]"), 1,"") -> 
M29: =IF(OR(LEN(D22)<9,D22="[наберите на клавиатуре]"),"Проверьте правильность номера мобильного! "&CHAR(10),"") ->  | N29: =IF(OR(LEN(D22)<9,D22="[наберите на клавиатуре]"),1,"") -> 
N30: =SUM(N26:N29) -> 0

Sheet 2. Пров.суммы
A1: Сведения о проверенных средствах
A2: =CONCATENATE('1. Начальные данные'!L18,'1. Начальные данные'!M18) -> 429162017
A3: ='1. Начальные данные'!L17 -> ФУ Администрации МР Нуримановский район РБ
P4: в тыс. руб.
A5: По средствам бюджета Республики Башкортостан
A6: Наименование | B6: РзПр | E6: =IFERROR(I6-1,"не выбран период") -> 2014 | I6: =IFERROR(M6-1,"не выбран период") -> 2015 | M6: =IFERROR(Q6-1,"не выбран период") -> 2016 | Q6: =IFERROR(IF('1. Начальные данные'!L18="1 января",LEFT('1. Начальные данные'!M18,4)-1,LEFT('1. Начальные данные'!M18,4)-0),"не выбран период") -> 2017
A7: Функционирование Президента Российской Федерации | B7: 0101
A8: Функционирование высшего должностного лица субъекта Российской Федерации и муниципального образования | B8: 0102
A9: Функционирование законодательных (представительных) органов государственной власти и представительных органов муниципальных образований | B9: 0103
A10: Функционирование Правительства Российской Федерации, высших исполнительных органов государственной власти субъектов Российской Федерации, местных администраций | B10: 0104
A11: Судебная система | B11: 0105
A12: Обеспечение деятельности финансовых, налоговых и таможенных органов и органов финансового (финансово-бюджетного) надзора | B12: 0106
A13: Обеспечение проведения выборов и референдумов | B13: 0107
A14: Международные отношения и международное сотрудничество | B14: 0108
A15: Государственный материальный резерв | B15: 0109
A16: Фундаментальные исследования | B16: 0110
A17: Резервные фонды | B17: 0111
A18: Прикладные научные исследования в области общегосударственных вопросов | B18: 0112
A19: Другие общегосударственные вопросы | B19: 0113
A20: Вооруженные Силы Российской Федерации | B20: 0201
A21: Модернизация Вооруженных Сил Российской Федерации и воинских формирований | B21: 0202
A22: Мобилизационная и вневойсковая подготовка | B22: 0203
A23: Мобилизационная подготовка экономики | B23: 0204
A24: Подготовка и участие в обеспечении коллективной безопасности и миротворческой деятельности; | B24: 0205
A25: Ядерно-оружейный комплекс | B25: 0206
A26: Реализация международных обязательств в сфере военно-технического сотрудничества | B26: 0207
A27: Прикладные научные исследования в области национальной обороны | B27: 0208
A28: Другие вопросы в области национальной обороны | B28: 0209
A29: Органы прокуратуры | B29: 0301
A30: Органы внутренних дел | B30: 0302
A31: Внутренние войска | B31: 0303
A32: Органы юстиции | B32: 0304
A33: Система исполнения наказаний | B33: 0305
A34: Органы безопасности | B34: 0306
A35: Органы пограничной службы | B35: 0307
A36: Органы по контролю за оборотом наркотических средств и психотропных веществ | B36: 0308
A37: Защита населения и территории от чрезвычайных ситуаций природного и техногенного характера, гражданская оборона | B37: 0309
A38: Обеспечение пожарной безопасности | B38: 0310
A39: Миграционная политика | B39: 0311
A40: Модернизация внутренних войск, спасательных воинских формирований федерального органа исполнительной власти, уполномоченного на решение задач в области гражданской обороны, а также правоохранительных и иных органов | B40: 0312
A41: Прикладные научные исследования в области национальной безопасности и правоохранительной деятельности | B41: 0313
A42: Другие вопросы в области национальной безопасности и правоохранительной деятельности | B42: 0314
A43: Общеэкономические вопросы | B43: 0401
A44: Топливно-энергетический комплекс | B44: 0402
A45: Исследование и использование космического пространства | B45: 0403
A46: Воспроизводство минерально-сырьевой базы | B46: 0404
A47: Сельское хозяйство и рыболовство | B47: 0405
A48: Водное хозяйство | B48: 0406
A49: Лесное хозяйство | B49: 0407
A50: Транспорт | B50: 0408
A51: Дорожное хозяйство (дорожные фонды) | B51: 0409
A52: Связь и информатика | B52: 0410
A53: Прикладные научные исследования в области национальной экономики | B53: 0411
A54: Другие вопросы в области национальной экономики | B54: 0412
A55: Жилищное хозяйство | B55: 0501
A56: Коммунальное хозяйство | B56: 0502
A57: Благоустройство | B57: 0503
A58: Прикладные научные исследования в области жилищно-коммунального хозяйства | B58: 0504
A59: Другие вопросы в области жилищно-коммунального хозяйства | B59: 0505
A60: Экологический контроль | B60: 0601
A61: Сбор, удаление отходов и очистка сточных вод | B61: 0602
A62: Охрана объектов растительного и животного мира и среды их обитания | B62: 0603
A63: Прикладные научные исследования в области охраны окружающей среды | B63: 0604
A64: Другие вопросы в области охраны окружающей среды | B64: 0605
A65: Дошкольное образование | B65: 0701 | I65: 2148955.24 | M65: =116979.3+912155 -> 1029134.3
A66: Общее образование | B66: 0702 | I66: 6258504.63 | M66: =634560.85+5369751 -> 6004311.85
A67: Начальное профессиональное образование | B67: 0703
A68: Среднее профессиональное образование | B68: 0704
A69: Профессиональная подготовка, переподготовка и повышение квалификации | B69: 0705
A70: Высшее и послевузовское профессиональное образование | B70: 0706
A71: Молодежная политика и оздоровление детей | B71: 0707
A72: Прикладные научные исследования в области образования | B72: 0708
A73: Другие вопросы в области образования | B73: 0709
A74: Культура | B74: 0801
A75: Кинематография | B75: 0802
A76: Прикладные научные исследования в области культуры, кинематографии | B76: 0803
A77: Другие вопросы в области культуры, кинематографии | B77: 0804
A78: Стационарная медицинская помощь | B78: 0901
A79: Амбулаторная помощь | B79: 0902
A80: Медицинская помощь в дневных стационарах всех типов | B80: 0903
A81: Скорая медицинская помощь | B81: 0904
A82: Санаторно-оздоровительная помощь | B82: 0905
A83: Заготовка, переработка, хранение и обеспечение безопасности донорской крови и ее компонентов | B83: 0906
A84: Санитарно-эпидемиологическое благополучие | B84: 0907
A85: Прикладные научные исследования в области здравоохранения | B85: 0908
A86: Другие вопросы в области здравоохранения | B86: 0909
A87: Пенсионное обеспечение | B87: 1001
A88: Социальное обслуживание населения | B88: 1002
A89: Социальное обеспечение населения | B89: 1003
A90: Охрана семьи и детства | B90: 1004
A91: Прикладные научные исследования в области социальной политики | B91: 1005
A92: Другие вопросы в области социальной политики | B92: 1006
A93: Физическая культура | B93: 1101
A94: Массовый спорт | B94: 1102
A95: Спорт высших достижений | B95: 1103
A96: Прикладные научные исследования в области физической культуры и спорта | B96: 1104
A97: Другие вопросы в области физической культуры и спорта | B97: 1105
A98: Телевидение и радиовещание | B98: 1201
A99: Периодическая печать и издательства | B99: 1202
A100: Прикладные научные исследования в области средств массовой информации | B100: 1203
A101: Другие вопросы в области средств массовой информации | B101: 1204
A102: Обслуживание государственного внутреннего и муниципального долга | B102: 1301
A103: Обслуживание государственного внешнего долга | B103: 1302
A104: Дотации на выравнивание бюджетной обеспеченности субъектов Российской Федерации и муниципальных образований | B104: 1401
A105: Иные дотации | B105: 1402
A106: Прочие межбюджетные трансферты общего характера | B106: 1403
A107: Итого по средствам бюджета Республики Башкортостан | E107: =SUM(E7:H106) -> 0 | I107: =SUM(I7:L106) -> 8407459.87 | M107: =SUM(M7:P106) -> 7033446.15 | Q107: =SUM(Q7:T106) -> 0
A109: По средствам бюджета муниципального образования
A110: Наименование | B110: РзПр | E110: =IFERROR(I6-1,"не выбран период") -> 2014 | I110: =IFERROR(M6-1,"не выбран период") -> 2015 | M110: =IFERROR(Q6-1,"не выбран период") -> 2016 | Q110: =IFERROR(IF('1. Начальные данные'!L18="1 января",LEFT('1. Начальные данные'!M18,4)-1,LEFT('1. Начальные данные'!M18,4)-0),"не выбран период") -> 2017
A111: Функционирование Президента Российской Федерации | B111: 0101
A112: Функционирование высшего должностного лица субъекта Российской Федерации и муниципального образования | B112: 0102
A113: Функционирование законодательных (представительных) органов государственной власти и представительных органов муниципальных образований | B113: 0103
A114: Функционирование Правительства Российской Федерации, высших исполнительных органов государственной власти субъектов Российской Федерации, местных администраций | B114: 0104
A115: Судебная система | B115: 0105
A116: Обеспечение деятельности финансовых, налоговых и таможенных органов и органов финансового (финансово-бюджетного) надзора | B116: 0106
A117: Обеспечение проведения выборов и референдумов | B117: 0107
A118: Международные отношения и международное сотрудничество | B118: 0108
A119: Государственный материальный резерв | B119: 0109
A120: Фундаментальные исследования | B120: 0110
A121: Резервные фонды | B121: 0111
A122: Прикладные научные исследования в области общегосударственных вопросов | B122: 0112
A123: Другие общегосударственные вопросы | B123: 0113
A124: Вооруженные Силы Российской Федерации | B124: 0201
A125: Модернизация Вооруженных Сил Российской Федерации и воинских формирований | B125: 0202
A126: Мобилизационная и вневойсковая подготовка | B126: 0203
A127: Мобилизационная подготовка экономики | B127: 0204
A128: Подготовка и участие в обеспечении коллективной безопасности и миротворческой деятельности; | B128: 0205
A129: Ядерно-оружейный комплекс | B129: 0206
A130: Реализация международных обязательств в сфере военно-технического сотрудничества | B130: 0207
A131: Прикладные научные исследования в области национальной обороны | B131: 0208
A132: Другие вопросы в области национальной обороны | B132: 0209
A133: Органы прокуратуры | B133: 0301
A134: Органы внутренних дел | B134: 0302
A135: Внутренние войска | B135: 0303
A136: Органы юстиции | B136: 0304
A137: Система исполнения наказаний | B137: 0305
A138: Органы безопасности | B138: 0306
A139: Органы пограничной службы | B139: 0307
A140: Органы по контролю за оборотом наркотических средств и психотропных веществ | B140: 0308
A141: Защита населения и территории от чрезвычайных ситуаций природного и техногенного характера, гражданская оборона | B141: 0309
A142: Обеспечение пожарной безопасности | B142: 0310
A143: Миграционная политика | B143: 0311
A144: Модернизация внутренних войск, спасательных воинских формирований федерального органа исполнительной власти, уполномоченного на решение задач в области гражданской обороны, а также правоохранительных и иных органов | B144: 0312
A145: Прикладные научные исследования в области национальной безопасности и правоохранительной деятельности | B145: 0313
A146: Другие вопросы в области национальной безопасности и правоохранительной деятельности | B146: 0314
A147: Общеэкономические вопросы | B147: 0401
A148: Топливно-энергетический комплекс | B148: 0402
A149: Исследование и использование космического пространства | B149: 0403
A150: Воспроизводство минерально-сырьевой базы | B150: 0404
A151: Сельское хозяйство и рыболовство | B151: 0405
A152: Водное хозяйство | B152: 0406
A153: Лесное хозяйство | B153: 0407
A154: Транспорт | B154: 0408
A155: Дорожное хозяйство (дорожные фонды) | B155: 0409
A156: Связь и информатика | B156: 0410
A157: Прикладные научные исследования в области национальной экономики | B157: 0411
A158: Другие вопросы в области национальной экономики | B158: 0412
A159: Жилищное хозяйство | B159: 0501
A160: Коммунальное хозяйство | B160: 0502
A161: Благоустройство | B161: 0503
A162: Прикладные научные исследования в области жилищно-коммунального хозяйства | B162: 0504
A163: Другие вопросы в области жилищно-коммунального хозяйства | B163: 0505
A164: Экологический контроль | B164: 0601
A165: Сбор, удаление отходов и очистка сточных вод | B165: 0602
A166: Охрана объектов растительного и животного мира и среды их обитания | B166: 0603
A167: Прикладные научные исследования в области охраны окружающей среды | B167: 0604
A168: Другие вопросы в области охраны окружающей среды | B168: 0605
A169: Дошкольное образование | B169: 0701
A170: Общее образование | B170: 0702
A171: Начальное профессиональное образование | B171: 0703
A172: Среднее профессиональное образование | B172: 0704
A173: Профессиональная подготовка, переподготовка и повышение квалификации | B173: 0705
A174: Высшее и послевузовское профессиональное образование | B174: 0706
A175: Молодежная политика и оздоровление детей | B175: 0707
A176: Прикладные научные исследования в области образования | B176: 0708
A177: Другие вопросы в области образования | B177: 0709
A178: Культура | B178: 0801
A179: Кинематография | B179: 0802
A180: Прикладные научные исследования в области культуры, кинематографии | B180: 0803
A181: Другие вопросы в области культуры, кинематографии | B181: 0804
A182: Стационарная медицинская помощь | B182: 0901
A183: Амбулаторная помощь | B183: 0902
A184: Медицинская помощь в дневных стационарах всех типов | B184: 0903
A185: Скорая медицинская помощь | B185: 0904
A186: Санаторно-оздоровительная помощь | B186: 0905
A187: Заготовка, переработка, хранение и обеспечение безопасности донорской крови и ее компонентов | B187: 0906
A188: Санитарно-эпидемиологическое благополучие | B188: 0907
A189: Прикладные научные исследования в области здравоохранения | B189: 0908
A190: Другие вопросы в области здравоохранения | B190: 0909
A191: Пенсионное обеспечение | B191: 1001
A192: Социальное обслуживание населения | B192: 1002
A193: Социальное обеспечение населения | B193: 1003
A194: Охрана семьи и детства | B194: 1004
A195: Прикладные научные исследования в области социальной политики | B195: 1005
A196: Другие вопросы в области социальной политики | B196: 1006
A197: Физическая культура | B197: 1101
A198: Массовый спорт | B198: 1102
A199: Спорт высших достижений | B199: 1103
A200: Прикладные научные исследования в области физической культуры и спорта | B200: 1104
A201: Другие вопросы в области физической культуры и спорта | B201: 1105
... 113 more rows

Sheet 3. Объяснительная
A1: Объяснительная (свод) к сведениям о результатах проведенных контрольных мероприятий
A2: =CONCATENATE('1. Начальные данные'!L18,'1. Начальные данные'!M18) -> 429162017
A3: ='1. Начальные данные'!L17 -> ФУ Администрации МР Нуримановский район РБ
AA4: в тыс.руб.
A5: Наименование | B5: Номер | F5: Итого | K5: В использовании средств
K6: бюджета РБ | P6: бюджета МО | U6: полученных от предпр-ой и иной приносящей доход деятельности | Z6: прочих
A7: 1 | B7: 2 | F7: 3 | K7: 4 | P7: 5 | U7: 6 | Z7: 7
A8: СУММА ФИНАНСОВЫХ НАРУШЕНИЙ | B8: 16 | F8: =F9+F23+F106+F108+F112+F154+F157+F247 -> 2236.3 | K8: =K9+K23+K106+K108+K112+K154+K157+K247 -> 0 | P8: =P9+P23+P106+P108+P112+P154+P157+P247 -> 2236.3 | U8: =U9+U23+U106+U108+U112+U154+U157+U247 -> 0 | Z8: =Z9+Z23+Z106+Z108+Z112+Z154+Z157+Z247 -> 0
A9: Нецелевое использование средств | B9: 17 | F9: =SUM(F10:J22) -> 0 | K9: =SUM(K10:O22) -> 0 | P9: =SUM(P10:T22) -> 0 | U9: =SUM(U10:Y22) -> 0 | Z9: =SUM(Z10:AD22) -> 0
A10: Использование бюджетных средств (принятие и исполнение денежных обязательств) на оплату расходов, которые должны осуществляться за счет доходов от предпринимательской и иной приносящей доход деятельности или иных источников. | B10: 17.2.1.2. | F10: =SUM(K10:AD10) -> 0
A11: Другие нарушения в части нецелевого использования бюджетных средств | B11: 17.2.1.20. | F11: =SUM(K11:AD11) -> 0
A12: Использование бюджетных средств (принятие и исполнение денежных обязательств) на оплату пособий, компенсаций, субсидий и других денежных выплат лицам, не имеющим правовых оснований для их получения. | B12: 17.2.1.3. | F12: 0
A13: Перечисление неиспользованных остатков бюджетных средств на счета других юридических лиц или на счет по учету средств, полученных от предпринимательской и иной приносящей доход деятельности. | B13: 17.2.1.4. | F13: 0
A14: Использование бюджетных средств на оплату товаров, работ, услуг, не связанных с деятельностью получателя бюджетных средств, на оказание финансовой помощи коммерческим организациям или на их создание. | B14: 17.2.1.5. | F14: 0
A15: Использование бюджетных средств на оплату расходов, не предусмотренных сметой доходов и расходов (бюджетной сметой с 01.01.2008 года), либо иным правовым основаниям их получения в финансовом году. | B15: 17.2.1.6. | F15: 0
A16: Использование средств целевого бюджетного финансирования (в рамках реализации приоритетных национальных проектов, целевых программ и т.д.), бюджетных кредитов, бюджетных инвестиций не по назначению - на цели, не соответствующие условиям, определенным соответствующим нормативным актом. | B16: 17.2.1.7. | F16: 0
A17: Использование бюджетных средств получателями на цели, не соответствующие условиям, определенным законодательством, регулирующим их деятельность. | B17: 17.2.1.8. | F17: 0
A18: Использование бюджетных средств на оплату расходов на строительство объектов и строек, не предусмотренных проектно-сметной документацией или при отсутствии утвержденной проектно-сметной документации, экспертизы проекта. | B18: 17.2.1.9. | F18: 0
A19: Расходование средств, полученных от предпринимательской и иной приносящей доход деятельности, на цели, не предусмотренные сметой доходов и расходов (бюджетной сметой с 01.01.2008 года) бюджетного учреждения. | B19: 17.5.2.2. | F19: 0
A20: Нецелевое использование субсидии автономным и бюджетным учреждением | B20: 17.2.1.20.1. | F20: 0
A21: Нецелевое использование субсидии автономным и бюджетным учреждением, предусмотренныена содержание имущества | B21: 17.2.1.20.2. | F21: 0
A22: Нецелевое использование субсидии. Нарушение по условиям соглашений в части софинансирования соответствующих обязательств за счет средств местного бюджета (полученная субсидия, предусмотренная по соглашению направлена на иные цели ) | B22: 17.2.1.20.3 | F22: 0
A23: Неэффективное использование материальных ресурсов и денежных средств | B23: 18 | F23: =SUM(K23:AD23) -> 46.3 | K23: =SUM(K24:O105) -> 0 | P23: =SUM(P24:T105) -> 46.3 | U23: =SUM(U24:Y105) -> 0 | Z23: =SUM(Z24:AD105) -> 0
A24: Неправомерное предоставление льгот, отсрочек, рассрочек по обязательным платежам в бюджет, налоговых кредитов и налоговых инвестиционных кредитов, а также отсутствие соответвующего контроля за выполнением условий, на которых были предоставлены льготы, отсрочки, рассрочки по платежам в бюджет, налоговые кредиты и налоговые инвестиционные кредиты. | B24: 18.1.1.1. | F24: =SUM(K24:AD24) -> 0
A25: Нарушение порядка распоряжения объектом нежилого фонда, находящимся в государственной собственности Республики Башкортостан или муниципальной собственности, и использования указанного объекта. Предоставление государственного (муниципального) имущества без согласия собственника в пользование, без получения доходов от его использования в соответствующий бюджет. | B25: 18.1.1.11. | F25: =SUM(K25:AD25) -> 0
A26: Неправомерное предоставление льгот, отсрочек, рассрочек по платежам за пользование государственным (муниципальным) имуществом. | B26: 18.1.1.13. | F26: 0
A27: Неправомерное списание задолженности по налогам и другим обязательным платежам. | B27: 18.1.1.2. | F27: 0
A28: Непринятие мер по взысканию недоимки по налогам, сборам и обязательным платежам в доход бюджета, в том числе отсутствие контроля за правильностью исчисления, полнотой и своевременностью уплаты, начисления и учета, взыскания и принятия решений о возврате (зачете) излишне уплаченных (взысканных) платежей, пеней и штрафов по ним. | B28: 18.1.1.3. | F28: 0
A29: Неперечисление (несвоевременное или неполное перечисление) в бюджет средств, полученных от распоряжения государственной (муниципальной) собственностью, использования государственной (муниципальной) собственности, предоставления государственных (муниципальных) услуг. | B29: 18.1.1.5. | F29: 0
A30: Неправомерное использование доходов, полученных сверх утвержденных законом о бюджете. | B30: 18.1.2.10. | F30: 0
A31: Неправомерное финансирование федеральных органов государственной власти и организаций за счет средств бюджетов субъектов РФ и (или) местных бюджетов (при отсутствии правовых оснований). | B31: 18.1.2.11. | F31: 0
A32: Неправомерное финансирование расходных обязательств Республики Башкортостан за счет средств местных бюджетов (при отсутствии правовых оснований). | B32: 18.1.2.12. | F32: 0
A33: Неправомерное финансирование местных органов власти и организаций за счет средств бюджета Республики Башкортостан (при отсутствии правовых оснований). | B33: 18.1.2.13. | F33: 0
A34: Нарушение сроков подтверждения денежных обязательств, влекущее выплату пени, штрафов. | B34: 18.1.2.18. | F34: 0
A35: Не соблюдение условий возмездности и возвратности при предоставлении бюджетных кредитов | B35: 18.1.2.20. | F35: 0
A36: Предоставление бюджетных кредитов с нарушением закона (решения) о бюджете. | B36: 18.1.2.22. | F36: 0
A37: Неправомерное осуществление государственных (муниципальных) заимствований. | B37: 18.1.2.26. | F37: 0
A38: Предоставление бюджетных инвестиций без оформления доли Республики Башкортостан (муниципального образования) в уставных (складочных) капиталах юридических лиц. | B38: 18.1.2.29. | F38: 0
A39: Осуществление бюджетных инвестиций в объекты государственной и муниципальной собственности с нарушением установленного порядка. | B39: 18.1.2.30. | F39: 0
A40: Нарушение порядка размещения бюджетных средств на банковских депозитах или передачи их в доверительное управление.Неэффективное размещение государственных средств в кредитных организациях. | B40: 18.1.2.33. | F40: 0
A41: Другие нарушения, влекущие правонарушения в сфере исполнения бюджета по расходам. | B41: 18.1.2.36. | F41: 0
A42: Финансирование расходов, не предусмотренных законом о бюджете и (или) бюджетной росписью. | B42: 18.1.2.5. | F42: 0
A43: Финансирование расходов, не предусмотренных законом о бюджете и (или) бюджетной росписью. | B43: 18.1.2.5. | F43: 0
A44: Направление средств резервных фондов на цели, отличные от их назначения (в нарушение порядка, установленного соответствующими нормативно-правовыми актами). | B44: 18.1.2.9. | F44: 0
A45: Начисление выплат по заработной плате по вредности | B45: 18.2.2.3. | F45: 0
A46: Закупки товаров, работ и услуг сверх установленных законодательством сумм без заключения государственных (муниципальных) контрактов (в т.ч. необоснованное дробление объемов работ, закупок при размещении заказов). | B46: 18.2.3.1. | F46: 0
A47: Приобретение товарно-материальных ценностей, выполнение работ, оказание услуг по завышенным ценам в результате указания в конкурсной и иной документации завышенной начальной цены контракта по сравнению со средней рыночной ценой в регионе. | B47: 18.2.3.10. | F47: 0
A48: Иные нарушения при осуществлении государственных (муниципальных) закупок и исполнении государственных (муниципальных) контрактов, договоров. | B48: 18.2.3.11. | F48: 43.3 | P48: 43.3
A49: Иные нарушения при осуществлении государственных (муниципальных) закупок и исполнении государственных (муниципальных) контрактов, договоров (приобретение жилых помещений для детей-сирот не соответствующих техническому заданию контракта). | B49: 18.2.3.11.1. | F49: 0
A50: Закупки, в которых выявлены нарушения при применении заказчиком мер ответственности и совершения иных действий в случае нарушения поставщиком (подрядчиком, исполнителем) условий контракта | B50: 18.2.3.11.2. | F50: 0
A51: Закупки, в которых выявлено несоответствие поставленного товара выполненной работы (ее результата) или оказанной услуги условиям контракта | B51: 18.2.3.11.3. | F51: 0
A52: Закупки, в которых выявлены нарушения в части своевременности, полноты и достоверности отражения в документах учета поставленного товара. Выполненной работы (ее результата) или оказанной услуги | B52: 18.2.3.11.4. | F52: 0
A53: Закупки, в которых выявлено несоответствие использования поставленного товара, выполненной работы (ее результата) или оказанной услуги целям осуществления закупки | B53: 18.2.3.11.5. | F53: 0
A54: Неправомерное получение кредита бюджетным учреждением | B54: 18.2.3.12. | F54: 0
A55: Дебиторская задолженность по оплате товаров (работ, услуг) (в случаях, когда авансирование договором не предусмотрено, либо перечисление аванса произведено в размерах, превышающих размеры, установленные действующим законодательством). | B55: 18.2.3.13. | F55: 0
A56: Дебиторская задолженность по оплате работ по текущему и капитальному ремонту, реконструкции и строительству (в случаях, когда авансирование договором не предусмотрено, либо перечисление аванса произведено в размерах, превышающих размеры, установленные действующим законодательством). | B56: 18.2.3.14. | F56: 0
A57: Несоблюдение нормативов финансовых затрат на оказание государственных или муниципальных услуг. | B57: 18.2.3.15. | F57: 0
A58: Не соблюдение стандартов расходов на содержание органов государственной власти (местного самоуправления) (в т.ч. завышение норм занимаемых площадей). | B58: 18.2.3.16. | F58: 0
A59: Расходование бюджетных средств с затратами сверх необходимого (возможного) на получение требуемого результата. | B59: 18.2.3.17. | F59: 0
A60: Расходование бюджетных средств без достижения требуемого результата. | B60: 18.2.3.18. | F60: 3 | P60: 3
A61: Оплата работ, которые должны выполняться для бюджетных учреждений бесплатно. | B61: 18.2.3.19. | F61: 0
A62: Осуществление государственных, муниципальных закупок, размещения заказа на поставки товаров, выполнение работ, оказание услуг для государственных и муниципальных нужд, без проведения процедур, предусмотренных законодательством. | B62: 18.2.3.2. | F62: 0
A63: Отсутствие, несвоевременное принятие локальных правовых актов, определяющих порядок использования средств бюджетной системы. | B63: 18.2.3.20. | F63: 0
A64: Неэффективное использование бюджетных средств вследствие приобретения или списания некачественной продукции или продукции с истекшим сроком хранения (использования). | B64: 18.2.3.21. | F64: 0
A65: Неэффективное использование бюджетных средств вследствие реализации материальных ресурсов по заниженным ценам, либо по ценам приобретения без учета действующих на момент реализации рыночных цен. | B65: 18.2.3.22. | F65: 0
A66: Неэффективное использование бюджетных средств вследствие необоснованного применения норм естественной убыли. | B66: 18.2.3.23. | F66: 0
A67: Неэффективное использование бюджетных средств вследствие неоприходования стоимости материалов, полученных от разборки объектов основных средств. | B67: 18.2.3.24. | F67: 0
A68: Неэффективное использование бюджетных средств в результате возмещения учреждением (организацией) материального ущерба и морального вреда, причиненного действиями работника. | B68: 18.2.3.25. | F68: 0
A69: Неэффективное использование бюджетных средств вследствие приобретения неиспользуемого оборудования, либо ремонт такого оборудования и имущества. | B69: 18.2.3.26. | F69: 0
A70: Неэффективное использование бюджетных средств вследствие недобора платы за проживание и коммунальные услуги с лиц, занимающих жилые помещения, состоящие на балансе учреждения. | B70: 18.2.3.27. | F70: 0
A71: Неэффективное использование бюджетных средств вследствие образования дебиторской задолженности по заработной плате за уволенными работниками. | B71: 18.2.3.28. | F71: =SUM(K71:AD71) -> 0
A72: Образование кредиторской задолженности вследствие принятия организаций дополнительных обязательств в результате нарушения режима экономии средств. | B72: 18.2.3.29. | F72: 0
A73: Не соблюдение требований законодательства о размещении заказов на поставки товаров, выполнение работ, оказание услуг для государственных и муниципальных нужд при осуществлении конкурсных, аукционных процедур и процедур запроса котировок. | B73: 18.2.3.3. | F73: 0
A74: Неполное либо несвоевременное перечисление бюджетным учреждением платежей в бюджет и государственные внебюджетные фонды, повлекшее начисление финансовых санкций. | B74: 18.2.3.30. | F74: 0
A75: Иные нарушения в части неэффективного использования бюджетных средств. | B75: 18.2.3.31. | F75: 0
A76: Иные нарушения в части неэффективного использования бюджетных средств. Оплата транспортного налога за неэксплуатируемый транспорт. | B76: 18.2.3.32. | F76: 0
A77: Неэффективное использование субсидии автономными и бюджетными учреждениями | B77: 18.2.3.33. | F77: 0
A78: Иные нарушения в части неэффективного использования бюджетных средств. Нарушения по энергосбережению и повышению энергетической | B78: 18.2.3.34. | F78: 0
A79: Иные нарушения в части неэффективного использования бюджетных средств. Погашение кредиторской задолженности, образованной в прошлом периоде при наличии ЛБО | B79: 18.2.3.35. | F79: 0
A80: Другие неэффективные расходы. Неэффективные расходы средств, выделенных на реализацию адресной программы Республики Башкортостан на период 2011 - 2015 годов по замене и модернизации лифтов, отработавших нормативный срок службы. | B80: 18.18.2.3.36. | F80: 0
A81: Другие неэффективные расходы. Неэффективные нарушения в использовании средств, выделенных на софинансирование расходов по модернизации систем наружного освещения населенных пунктов Республики Башкортостан на 2011–2015 годы. | B81: 18.18.2.3.37. | F81: 0
A82: Другие неэффективные расходы. Неэффективные нарушения использовании средств, выделенных на реализацию республиканской адресной программы по проведению капитального ремонта многоквартирных домов | B82: 18.18.2.3.38. | F82: 0
A83: Иные нарушения в части неэффективного использования бюджетных средств. Непринятие мер по обеспечению снижения количества потребляемых коммунальных услуг | B83: 18.18.2.3.39. | F83: 0
A84: Иные нарушения в части неэффективного использования бюджетных средств. В образовательных учреждениях при отсутствии лицензии на осуществление медицинской деятельности произведены расходы по выплате заработной плате медицинским сестрам какие функция она выполняет, (введено в штат. Расписание должность медсестры, а должны по согл-ю с МО, МЗ РБ работать медперсонал с больницы) | B84: 18.18.2.3.40. | F84: 0
A85: Иные нарушения в части неэффективного использования средств. (Хозяйствующий субъект) | B85: 18.18.2.3.41. | F85: 0
A86: Заключение государственных (муниципальных) контрактов с единственным поставщиком (в установленных случаях) без соблюдения установленных процедур и с нарушением закона. | B86: 18.2.3.4. | F86: 0
A87: Неэффективное использование бюджетных средств вследствие нарушений в оформлении государственных (муниципальных) контрактов, договоров, актов выполненных работ, других документов. | B87: 18.2.3.5. | F87: 0
A88: Неисполнение поставщиками (подрядчиками) условий государственных (муниципальных) контрактов, договоров по соблюдению договорных цен. | B88: 18.2.3.6. | F88: 0
A89: Заключение государственных (муниципальных) контрактов без установления обязательных условий, несоответствия конкурсной документации. | B89: 18.2.3.7. | F89: 0
A90: Неэффективное использование бюджетных средств вследствие неприменения штрафных санкций к поставщикам и подрядчикам, нарушившим обязательства по условиям государственного (муниципального) контракта, договора. | B90: 18.2.3.8. | F90: 0
A91: Неэффективное использование бюджетных средств вследствие заключения сделок, признанных судом недействительными. | B91: 18.2.3.9. | F91: 0
A92: Безвозмездная передача государственного (муниципального) имущества (собственности) при отсутствии достаточных на то оснований. Передача имущества другим юридическим и физическим лицам без разрешения собственника. | B92: 18.3.1.13. | F92: 0
A93: Непередача, неполная, несвоевременная передача государственного (муниципального) имущества. Передача имущества без соответствующего документального оформления. | B93: 18.3.1.15. | F93: 0
A94: Отсутствие контроля за использованием объектов государственной (муниципальной) собственности. | B94: 18.3.1.16. | F94: 0
A95: Затраты государственного (муниципального) имущества сверх необходимого (возможного) на получение требуемого результата. | B95: 18.3.1.17. | F95: 0
A96: Затраты государственного имущества без достижения требуемого результата. | B96: 18.3.1.18. | F96: 0
A97: Неосвоение, неиспользование (неполное использование) имущества. | B97: 18.3.1.19. | F97: 0
A98: Неэффективное управление объектами государственной и муниципальной собственности, убыточная, неприбыльная деятельность государственных и муниципальных унитарных предприятий, акционерных обществ и других организаций с участием государства; получение меньших, чем возможно, прибыли, дивидендов по акциям. | B98: 18.3.1.20. | F98: 0
A99: Неэффективное использование бюджетных средств в результате ущерба, причиненного дорожно-транспортным происшествием, не возмещенного виновным лицом. | B99: 18.3.1.21. | F99: 0
A100: Другие нарушения при распоряжении государственным (муниципальным) имуществом | B100: 18.3.1.22. | F100: 0
A101: Неправомерное предоставление в пользование или залог объектов государственной (муниципальной) собственности | B101: 18.3.1.9. | F101: 0
A102: Направление средств, полученных от предпринимательской и иной приносящей доход деятельности, на цели, не предусмотренные нормативными правовыми актами и разрешительными документами. | B102: 18.5.2.1. | F102: 0
A103: Невыполнение договорных обязательств; непринятие мер по погашению кредиторской задолженности. | B103: 18.5.2.8. | F103: 0
A104: Другие нарушения при осуществлении бюджетными учреждениями предпринимательской и иной приносящей доход деятельности. | B104: 18.5.2.9. | F104: 0
A105: Нарушения при распоряжении имущества автономных и бюджетных учреждений (особо ценного имущества, движимого имущества и недвиженого имущества, находящегося в собственности субъекта Российской Федерации, находящегося в муниципальной собственности) | B105: 18.3.1.23. | F105: 0
A106: Недостача денежных средств | B106: 19 | F106: 0 | K106: =SUM(K107) -> 0 | P106: =SUM(P107) -> 0 | U106: =SUM(U107) -> 0 | Z106: =SUM(Z107) -> 0
A107: Недостача наличных денежных средств, бланков строгой отчетности в кассе организации. | B107: 19.2.2.55. | F107: 0
A108: Недостача материальных ресурсов | B108: 20 | F108: 0 | K108: =SUM(K109:O111) -> 0 | P108: =SUM(P109:T111) -> 0 | U108: =SUM(U109:Y111) -> 0 | Z108: =SUM(Z109:AD111) -> 0
A109: Недостача государственного (муниципального) имущества. | B109: 20.3.1.3. | F109: 0
A110: Недостача товарно-материальных ценностей. | B110: 20.2.2.54. | F110: 0
A111: Нарушение порядка приватизации государственного (муниципального) имущества | B111: 20.3.1.12. | F111: 0
A112: Недопоступление платежей в бюджет | B112: 21 | F112: 0 | K112: =SUM(K113:O133)+K134+K137 -> 0 | P112: =SUM(P113:T133)+P134+P137 -> 0 | U112: =SUM(U113:Y133)+U134+U137 -> 0 | Z112: =SUM(Z113:AD133)+Z134+Z137 -> 0
A113: Непоступление либо недопоступление средств в бюджет от реализация государственной (муниципальной) собственности (в т.ч. реализация государственной (муниципальной) собственности по заниженной стоимости, снижение стоимости реализуемого имущества вследствие естественной убыли или его порчи). | B113: 21.1.1.10. | F113: 0
A114: Нарушение порядка распоряжения объектом нежилого фонда, находящимся в государственной собственности Республики Башкортостан или муниципальной собственности, и использования указанного объекта. Предоставление государственного (муниципального) имущества без согласия собственника в пользование, без получения доходов от его использования в соответствующий бюджет. | B114: 21.1.1.11. | F114: 0
A115: Непринятие мер по взысканию арендной платы за пользование государственным (муниципальным) имуществом. Занижение и недополучение размеров арендной платы за использование государственного (муниципального) имущества. | B115: 21.1.1.12. | F115: 0
A116: Нарушение порядка зачисления средств в доход бюджета. | B116: 21.1.1.14. | F116: 0
A117: Другие нарушения, влекущие недопоступление средств в доход бюджета. | B117: 21.1.1.15. | F117: 0
A118: Непринятие мер по взысканию недоимки по налогам, сборам и обязательным платежам в доход бюджета, в том числе отсутствие контроля за правильностью исчисления, полнотой и своевременностью уплаты, начисления и учета, взыскания и принятия решений о возврате (зачете) излишне уплаченных (взысканных) платежей, пеней и штрафов по ним. | B118: 21.1.1.3. | F118: 0
A119: Непринятие мер по своевременному и полному получению в бюджетную систему средств, предоставленных на возвратной основе, а также платы за пользование этими средствами (включая бюджетные кредиты). | B119: 21.1.1.4. | F119: 0
A120: Неперечисление (несвоевременное или неполное перечисление) в бюджет средств, полученных от распоряжения государственной (муниципальной) собственностью, использования государственной (муниципальной) собственности, предоставления государственных (муниципальных) услуг. | B120: 21.1.1.5. | F120: 0
A121: Неперечисление (несвоевременное или неполное перечисление) в доход бюджета взыскиваемых сумм принудительного изъятия (штрафов, конфискаций и др.), а также доходов, полученных в виде возмещения ущерба. | B121: 21.1.1.6. | F121: 0
A122: Неперечисление (несвоевременное или неполное перечисление) в доход бюджета дебиторской задолженности прошлых лет, поступившей на счета получателей бюджетных средств в текущем году. | B122: 21.1.1.7. | F122: 0
A123: Неперечисление (несвоевременное или неполное перечисление) в бюджет установленной доли чистой прибыли государственными унитарными предприятиями (муниципальными унитарными предприятиями). | B123: 21.1.1.8. | F123: 0
A124: Неперечисление (несвоевременное или неполное перечисление) в бюджет дивидендов по акциям (долям), принадлежащим Республике Башкортостан или муниципальному образованию (при наличии решения о выплате дивидендов). | B124: 21.1.1.9. | F124: 0
A125: Не предъявления требований к возмещению сумм, уплаченных по муниципальной гарантии. | B125: 21.1.2.28. | F125: 0
A126: Реализация государственной (муниципальной) собственности с получением меньших, чем было возможно, средств (в т.ч. реализация государственной собственности по заниженной стоимости, снижение стоимости реализуемого имущества вследствие естественной убыли или его порчи) | B126: 21.3.1.14. | F126: 0
A127: Предоставление государственного (муниципального) имущества в аренду и субаренду без согласия собственника, без заключения договоров или без их регистрации в установленном порядке. | B127: 21.3.1.6. | F127: 0
A128: Несоблюдение условий договора аренды, занижение размеров арендной платы за использование государственного и муниципального имущества, в том числе предоставление во временное пользование имущества излишней площади, чем предусмотрено договором; несоблюдение сроков оплаты по договорам. | B128: 21.3.1.7. | F128: 0
A129: Непринятие мер по взысканию арендной платы за пользование государственным (муниципальным) имуществом | B129: 21.3.1.8. | F129: 0
A130: Неправомерное предоставление в пользование или залог объектов государственной (муниципальной) собственности | B130: 21.3.1.9. | F130: 0
A131: Осуществление деятельности, не предусмотренной учредительными документами. | B131: 21.5.2.5. | F131: 0
A132: Осуществление деятельности при отсутствии необходимых разрешений (лицензий, аттестации, аккредитации) или с их нарушением. | B132: 21.5.2.6. | F132: 0
A133: Другие нарушения при осуществлении бюджетными учреждениями предпринимательской и иной приносящей доход деятельности. | B133: 21.5.2.9. | F133: 0
A134: Налоговые платежи | B134: 22 | F134: 0 | K134: =SUM(K135:O136) -> 0 | P134: =SUM(P135:T136) -> 0 | U134: =SUM(U135:Y136) -> 0 | Z134: =SUM(Z135:AD136) -> 0
A135: Другие нарушения, влекущие недопоступление средств в доход бюджета | B135: 22.1.1.15. | F135: =SUM(K135:AD135) -> 0
A136: Предоставление государственного (муниципального) имущества в аренду и субаренду без согласия собственника, без заключения договоров или без их регистрации в установленном порядке. | B136: 22.3.1.6. | F136: 0
A137: Неналоговые платежи | B137: 23 | F137: 0 | K137: =SUM(K138:O153) -> 0 | P137: =SUM(P138:T153) -> 0 | U137: =SUM(U138:Y153) -> 0 | Z137: =SUM(Z138:AD153) -> 0
A138: Непринятие мер по взысканию пени за несвоевременное перечисление в доход бюджета доли чистой прибыли муниципальных унитарных предприятий | B138: 23.1.1.3. | F138: 0
A139: Не погашены пени за несвовременную уплату процентов по использованию бюджетных средств | B139: 23.1.1.4. | F139: 0
A140: Неперечисление (несвоевременное или неполное перечисление) в бюджет средств, полученных от распоряжения государственной (муниципальной) собственностью, использования государственной (муниципальной) собственности, предоставления государственных (муниц | B140: 23.1.1.5. | F140: 0
A141: Неперечисление (несвоевременное или неполное перечисление) в бюджет установленной доли чистой прибыли государственными унитарными предприятиями (муниципальными унитарными предприятиями) | B141: 23.1.1.8. | F141: 0
A142: Непоступление либо недопоступление средств в бюджет от реализация государственной (муниципальной) собственности (в т.ч. реализация государственной (муниципальной) собственности по заниженной стоимости, снижение стоимости реализуемого имущества вследс | B142: 23.1.1.10. | F142: 0
A143: Нарушение порядка распоряжения объектом нежилого фонда, находящимся в государственной собственности Республики Башкортостан или муниципальной собственности, и использования указанного объекта. Предоставление государственного (муниципального) имуществ | B143: 23.1.1.11. | F143: 0
A144: Нарушение порядка приватизации государственного (муниципального) имущества | B144: 23.1.1.12. | F144: 0
A145: Неправомерное предоставление льгот, отсрочек, рассрочек по платежам за пользование государственным (муниципальным) имуществом | B145: 23.1.1.13. | F145: 0
A146: Средства, подлежащие перечислению в доход бюджета в виде платы от найма жилых помещений не учитывались в доходах местного бюджета | B146: 23.1.1.14. | F146: 0
A147: Невзысканны пени в бюджет по арендной плате за землю | B147: 23.1.1.15. | F147: 0
A148: Предоставление государственного (муниципального) имущества в аренду и субаренду без согласия собственника, без заключения договоров или без их регистрации в установленном порядке. | B148: 23.3.1.6. | F148: 0
A149: Несоблюдение условий договора аренды, занижение размеров арендной платы за использование государственного и муниципального имущества, в том числе предоставление во временное пользование имущества излишней площади, чем предусмотрено договором; несоблю | B149: 23.3.1.7. | F149: 0
A150: Непринятие мер по взысканию арендной платы за пользование государственным (муниципальным) имуществом | B150: 23.3.1.8. | F150: 0
A151: Неправомерное предоставление в пользование или залог объектов государственной (муниципальной) собственности | B151: 23.3.1.9. | F151: 0
A152: Нарушение порядка приватизации государственного (муниципального) имущества | B152: 23.3.1.12. | F152: 0
A153: Реализация государственной (муниципальной) собственности с получением меньших, чем было возможно, средств (в т.ч. реализация государственной собственности по заниженной стоимости, снижение стоимости реализуемого имущества вследствие естественной убыл | B153: 23.3.1.14. | F153: 0
A154: Излишки материальных ценностей и денежных средств | B154: 24 | F154: 2188 | K154: =SUM(K155:O156) -> 0 | P154: =SUM(P155:T156) -> 2188 | U154: =SUM(U155:Y156) -> 0 | Z154: =SUM(Z155:AD156) -> 0
A155: Излишки товарно-материальных ценностей, денежных средств и бланков строгой отчетности. | B155: 24.2.2.56. | F155: 0
A156: Наличие неучтенного, неоприходованного в установленном порядке государственного (муниципального) имущества. | B156: 24.3.1.4. | F156: 2188 | P156: 2188
A157: Неправомерное расходование денежных средств и материальных ресурсов | B157: 25 | F157: 2 | K157: =SUM(K158:O246) -> 0 | P157: =SUM(P158:T246) -> 2 | U157: =SUM(U158:Y246) -> 0 | Z157: =SUM(Z158:AD246) -> 0
A158: Излишнее списание продуктов питания вследствие неверного применения норм естественной убыли | B158: 25.2.2.16. | F158: 0
A159: Излишнее либо неправомерное начисление отпускных (основные и дополнительные отпуска) и компенсации за неиспользованный отпуск, в том числе неправомерная выплата отпускных сотрудникам, отозванным из отпуска (начисление заработной платы и отпускных за один и тот же период), начисление отпускных в результате неверного расчета дней или неверного применения коэффициента с учетом начислений на выплаты по оплате труда. | B159: 25.2.2.6. | F159: 0
A160: Неправомерное использование доходов, полученных сверх утвержденных законом о бюджете. | B160: 25.1.2.10. | F160: 0
A161: Неправомерное финансирование федеральных органов государственной власти и организаций за счет средств бюджетов субъектов РФ и (или) местных бюджетов (при отсутствии правовых оснований). | B161: 25.1.2.11. | F161: 0
A162: Неправомерное финансирование расходных обязательств Республики Башкортостан за счет средств местных бюджетов (при отсутствии правовых оснований). | B162: 25.1.2.12. | F162: 0
A163: Неправомерное финансирование местных органов власти и организаций за счет средств бюджета Республики Башкортостан (при отсутствии правовых оснований). | B163: 25.1.2.13. | F163: 0
A164: Предоставление бюджетных инвестиций без оформления доли Республики Башкортостан (муниципального образования) в уставных (складочных) капиталах юридических лиц. | B164: 25.1.2.29. | F164: 0
A165: Предоставление субсидий юридическим лицам (за исключением субсидий государственным, муниципальным учреждениям), индивидуальным предпринимателям, физическим лицам - производителям товаров, работ, услуг и некоммерческим организациям в нарушение порядка, установленного соответствующими нормативно-правовыми актами. | B165: 25.1.2.31. | F165: 0
A166: Неправомерное финансирование расходов путем проведения зачета денежных средств. | B166: 25.1.2.32. | F166: 0
A167: Нарушение порядка размещения бюджетных средств на банковских депозитах или передачи их в доверительное управление.Неэффективное размещение государственных средств в кредитных организациях. | B167: 25.1.2.33. | F167: 0
A168: Выделение и направление средств бюджетной системы организациям, учредительными документами которых не предусмотрено осуществление соответствующей деятельности. | B168: 25.1.2.34. | F168: 0
A169: Другие нарушения, влекущие правонарушения в сфере исполнения бюджета по расходам. | B169: 25.1.2.36. | F169: 0
A170: Выделение главными распорядителями, распорядителями бюджетных средств и направление бюджетным учреждениям средств бюджета Республики Башкортостан и муниципальных бюджетов в нарушение казначейской системы исполнения бюджета или на иные счета получателей бюджетных средств. | B170: 25.1.2.4. | F170: 0
A171: Содержание за счет выделенных бюджетных средств сверхлимитной численности персонала с учетом начислений на выплаты по оплате труда. | B171: 25.2.2.1. | F171: 0
A172: Завышение объемных показателей деятельности учреждения, приводящее к неправильному определению размера оплаты труда руководителей. | B172: 25.2.2.10. | F172: 0
A173: Иные нарушения в части оплаты труда, пособий и единого социального налога | B173: 25.2.2.11. | F173: 0
A174: Обучение за счет выделенных бюджетных средств учащихся или студентов, численностью сверх или менее установленного лимита. | B174: 25.2.2.12. | F174: 0
A175: Начисления и выплаты стипендий, компенсаций и др. учащимся, студентам (в том числе обучаемым на договорной основе с полным возмещением затрат), учащимся (студентам) - сиротам и оставшимся без попечения родителей с нарушением действующего законодательства. | B175: 25.2.2.13. | F175: 0
A176: Иные нарушения в части расчетов с учащимися и студентами. | B176: 25.2.2.14. | F176: 0
A177: Излишнее списание продуктов питания вследствие применения завышенных (необоснованных) норм | B177: 25.2.2.15. | F177: 0
A178: Излишнее списание продуктов питания вследствие завышения количества питающихся | B178: 25.2.2.17. | F178: 0
A179: Списание продуктов на питание сотрудников, сторонних лиц (при условии, если последними не произведена оплата стоимости питания с последующим восстановление в соответствующий бюджет). | B179: 25.2.2.18. | F179: 0
A180: Иные нарушения в части списания продуктов питания. | B180: 25.2.2.19. | F180: 0
A181: Содержание за счет выделенных бюджетных средств должностей, не предусмотренных штатным расписанием или действующим законодательством с учетом начислений на выплаты по оплате труда. | B181: 25.2.2.2. | F181: 0
A182: Расходы, связанные со служебной командировкой, произведенные с превышением норм и нормативов, установленных законодательством. | B182: 25.2.2.20. | F182: 0
A183: Расходы на оплату добровольного страхования по проездным билетам. | B183: 25.2.2.21. | F183: 0
A184: Компенсация суточных по однодневным командировкам. | B184: 25.2.2.22. | F184: 0
A185: Выдача подотчетных сумм лицам, не работающим в учреждении. | B185: 25.2.2.23. | F185: 0
A186: Невостребование с работника бюджетного учреждения - подотчетного лица задолженности по бюджетным средствам, выданным ему в подотчет. | B186: 25.2.2.24. | F186: 0
A187: Иные нарушения в части списания подотчетных сумм. | B187: 25.2.2.25. | F187: 0
A188: Содержание сверхлимитного количества автотранспорта. | B188: 25.2.2.26. | F188: 0
A189: Списание бензина при эксплуатации автомобилей в выходные и праздничные дни при отсутствии приказа по учреждению (организации). | B189: 25.2.2.27. | F189: 2 | P189: 2
A190: Излишнее списание горюче-смазочных материалов вследствие применения завышенных (неправомерных) норм списания. | B190: 25.2.2.28. | F190: 0
A191: Списание запасных частей и горюче-смазочных материалов на эксплуатацию автомобилей, не принадлежащих учреждению. | B191: 25.2.2.29. | F191: 0
A192: Начисление выплат по заработной плате (окладов, надбавок, доплат, премий), не предусмотренных действующим законодательством, трудовыми договорами или соотвествующими распорядительными документами либо в размерах, превышающих размеры, установленные действующим законодательством (в том числе завышение окладов, ставок, разрядов по оплате труда), с учетом начислений на выплаты по оплате труда. | B192: 25.2.2.3. | F192: 0
A193: Иные нарушения в части содержания автотранспорта. | B193: 25.2.2.30. | F193: 0
A194: Оплата завышенных объемов строительно-монтажных работ, в том числе установленных контрольным обмером. | B194: 25.2.2.31. | F194: 0
A195: Оплата невыполненных объемов строительно-монтажных работ, в том числе установленных контрольным обмером. | B195: 25.2.2.31.1. | F195: 0
A196: Необоснованное применение норм, расценок при определении сметной стоимости работ ( в т.ч. применение территориальных единичных расценок других регионов на территории Республики Башкортостан). | B196: 25.2.2.32. | F196: 0
A197: Завышение лимитированных затрат, удорожающих коэффициентов при выполнении ремонтно-строительных работ. | B197: 25.2.2.33. | F197: 0
A198: Использование средств на проведение текущего ремонта в качестве оплаты работ по капитальному ремонту и наоборот вследствие неверной классификации видов и состава работ. | B198: 25.2.2.34. | F198: 0
A199: Неправильное определение стоимости работ, выполняемых организациями, работающими по упрощенной системе налогообложения. | B199: 25.2.2.35. | F199: =SUM(K199:AD199) -> 0
A200: Необоснованное расходование средств на оплату дополнительных расходов строительных организаций, не подтвержденных документально или в нарушение законодательства. | B200: 25.2.2.36. | F200: 0
... 125 more rows

Sheet 4. ФК-1
A1: Сведения о результатах проведенных контрольных мероприятий
A2: ='1. Начальные данные'!L18 -> 42916 | P2: ='1. Начальные данные'!M18 -> 2017
A3: ='1. Начальные данные'!L17 -> ФУ Администрации МР Нуримановский район РБ
A4: Количество подведомственных учреждений, всего: | V4: =V5+V6+V7 -> 0
A5: в том числе: автономные учреждения:
A6: казенные учреждения:
A7: бюджетные учреждения:
A8: Количество организаций, находящихся в ведении министерств, ведомств, ФУ:
A9: Наименование службы (сектора, отдела) на который возложены функции по проведению
A10: контрольных мероприятий:
A12: Количество штатных единиц, занятых в службе:
A14: №№ | D14: Показатели | Z14: Код строки | AC14: Сумма всего
A15: 1 | D15: 2 | Z15: 3 | AC15: 4
A16: I. | D16: Проведено ревизий и проверок (единиц), в том числе: | Z16: 1 | AC16: 3
D17: ревизий | Z17: 1.1 | AC17: 1
D18: проверок | Z18: 1.2 | AC18: 2
D19: по плану (из строки 1) | Z19: 2 | AC19: 1
D20: по поручениям администрации республики (из строки 1) | Z20: 3
D21: по обращениям органов местного самоуправлении (из строки 1) | Z21: 4 | AC21: 2
D22: по обращениям органов прокуратуры и МВД (из строки 1) | Z22: 5
D23: по обращениям физических лиц (из строки 1) | Z23: 6
D24: по обращениям прочих юридических лиц (из строки 1) | Z24: 7
D25: Проведено встречных проверок (единиц) | Z25: 8
D26: Ревизии и проверки проведены в учреждениях, (единиц):
D27: состоящих на бюджете Республики Башкортостан | Z27: 9
D28: состоящих на муниципальном бюджете | Z28: 10 | AC28: 2
D29: являющихся государственным унитарным предприятием | Z29: 11
D30: являющихся муниципальным унитарным предприятием | Z30: 12 | AC30: 1
D31: прочие организации | Z31: 13
D32: Количество проведенных инвентаризаций ТМЦ, кассы (денежных средств и ценных бумаг и т.п.) | Z32: 14 | AC32: 4
A33: II. | D33: Сведения о выявленных ревизиями (проверками) финансовых нарушениях
D34: Количество ревизий и проверок, которыми выявлены финансовые нарушения – всего: (единиц) | Z34: 15
D35: в использовании средств бюджета Республики Башкортостан | Z35: 15/1
D36: в использовании средств бюджета муниципального образования | Z36: 15/2 | AC36: 2
D37: в использовании средств, полученных от оказания платных услуг и осуществления иной приносящей доход деятельности | Z37: 15/3
D38: в использовании прочих средств | Z38: 15/4
A39: 1. | D39: Сумма финансовых нарушений, в том числе: | Z39: 16 | AC39: ='3. Объяснительная'!$F$8 -> 2236.3 | AG39: =IF(AC39>1000000,"обратите внимание: суммы нарушений в третьей вкладке 'Объяснительная' указываются в тыс.рублей","") -> 
D40: в использовании средств бюджета Республики Башкортостан | Z40: 16/1 | AC40: ='3. Объяснительная'!K8 -> 0
D41: в использовании средств бюджета муниципального образования | Z41: 16/2 | AC41: ='3. Объяснительная'!P8 -> 2236.3
D42: в использовании средств, полученных от оказания платных услуг и осуществления иной приносящей доход деятельности | Z42: 16/3 | AC42: ='3. Объяснительная'!U8 -> 0
D43: в использовании прочих средств | Z43: 16/4 | AC43: ='3. Объяснительная'!Z8 -> 0
A44: 1.1. | D44: Нецелевое использование средств (из строки 16), в том числе: | Z44: 17 | AC44: ='3. Объяснительная'!F9 -> 0
D45: средств бюджета Республики Башкортостан | Z45: 17/1 | AC45: ='3. Объяснительная'!K9 -> 0
D46: средств бюджета муниципального образования | Z46: 17/2 | AC46: ='3. Объяснительная'!P9 -> 0
D47: в использовании средств, полученных от оказания платных услуг и осуществления иной приносящей доход деятельности | Z47: 17/3 | AC47: ='3. Объяснительная'!U9 -> 0
D48: в использовании прочих средств | Z48: 17/4 | AC48: ='3. Объяснительная'!Z9 -> 0
A49: 1.2. | D49: Неэффективное использование материальных ресурсов и денежных средств (из строки 16), в том числе: | Z49: 18 | AC49: ='3. Объяснительная'!F23 -> 46.3
D50: средств бюджета Республики Башкортостан | Z50: 18/1 | AC50: ='3. Объяснительная'!K23 -> 0
D51: средств бюджета муниципального образования | Z51: 18/2 | AC51: ='3. Объяснительная'!P23 -> 46.3
D52: в использовании средств, полученных от оказания платных услуг и осуществления иной приносящей доход деятельности | Z52: 18/3 | AC52: ='3. Объяснительная'!U23 -> 0
D53: в использовании прочих средств | Z53: 18/4 | AC53: ='3. Объяснительная'!Z23 -> 0
A54: 1.3. | D54: Недостача денежных средств (из строки 16), в том числе: | Z54: 19 | AC54: ='3. Объяснительная'!F106 -> 0
D55: средств бюджета Республики Башкортостан | Z55: 19/1 | AC55: ='3. Объяснительная'!K106 -> 0
D56: средств бюджета муниципального образования | Z56: 19/2 | AC56: ='3. Объяснительная'!P106 -> 0
D57: средств, полученных от оказания платных услуг и осуществления иной приносящей доход деятельности | Z57: 19/3 | AC57: ='3. Объяснительная'!U106 -> 0
D58: прочих средств | Z58: 19/4 | AC58: ='3. Объяснительная'!Z106 -> 0
A59: 1.4. | D59: Недостача материальных ресурсов (из строки 16): в том числе | Z59: 20 | AC59: ='3. Объяснительная'!F108 -> 0
D60: приобретенных за счет средств бюджета Республики Башкортостан | Z60: 20/1 | AC60: ='3. Объяснительная'!K108 -> 0
D61: приобретенных за счет средств бюджета муниципального образования | Z61: 20/2 | AC61: ='3. Объяснительная'!P108 -> 0
D62: приобретенных за счет средств, полученных от оказания платных услуг и осуществления иной приносящей доход деятельности | Z62: 20/3 | AC62: ='3. Объяснительная'!U108 -> 0
D63: приобретенных за счет прочих средств | Z63: 20/4 | AC63: ='3. Объяснительная'!Z108 -> 0
A64: 1.5. | D64: Недопоступление платежей в бюджет (из строки 16), в том числе: | Z64: 21 | AC64: ='3. Объяснительная'!F112 -> 0
A65: 1.5.1. | D65: Налоговые платежи (из строки 21), из них: | Z65: 22 | AC65: ='3. Объяснительная'!F134 -> 0
D66: в бюджет Республики Башкортостан | Z66: 22/1 | AC66: ='3. Объяснительная'!K134 -> 0
D67: в бюджет муниципального образования | Z67: 22/2 | AC67: ='3. Объяснительная'!P134 -> 0
A68: 1.5.2. | D68: Неналоговые платежи (из строки 21), из них: | Z68: 23 | AC68: ='3. Объяснительная'!F137 -> 0
D69: в бюджет Республики Башкортостан | Z69: 23/1 | AC69: ='3. Объяснительная'!K137 -> 0
D70: в бюджет муниципального образования | Z70: 23/2 | AC70: ='3. Объяснительная'!P137 -> 0
A71: 1.6. | D71: Излишки материальных ценностей и денежных средств (из строки 16), в том числе: | Z71: 24 | AC71: ='3. Объяснительная'!F154 -> 2188
D72: средств бюджета Республики Башкортостан | Z72: 24/1 | AC72: ='3. Объяснительная'!K154 -> 0
D73: средств бюджета муниципального образования | Z73: 24/2 | AC73: ='3. Объяснительная'!P154 -> 2188
D74: средств, полученных от оказания платных услуг и осуществления иной приносящей доход деятельности | Z74: 24/3 | AC74: ='3. Объяснительная'!U154 -> 0
D75: прочих средств | Z75: 24/4 | AC75: ='3. Объяснительная'!Z154 -> 0
A76: 1.7. | D76: Неправомерное расходование денежных средств и материальных ресурсов (из строки 16), в том числе: | Z76: 25 | AC76: ='3. Объяснительная'!F157 -> 2
D77: средств бюджета Республики Башкортостан | Z77: 25/1 | AC77: ='3. Объяснительная'!K157 -> 0
D78: средств бюджета муниципального образования | Z78: 25/2 | AC78: ='3. Объяснительная'!P157 -> 2
D79: средств, полученных от оказания платных услуг и осуществления иной приносящей доход деятельности | Z79: 25/3 | AC79: ='3. Объяснительная'!U157 -> 0
D80: прочих средств | Z80: 25/4 | AC80: ='3. Объяснительная'!Z157 -> 0
A81: 1.8. | D81: Другие финансовые нарушения (из строки 16), в том числе: | Z81: 26 | AC81: ='3. Объяснительная'!F247 -> 0
D82: средств бюджета Республики Башкортостан | Z82: 26/1 | AC82: ='3. Объяснительная'!K247 -> 0
D83: средств бюджета муниципального образования | Z83: 26/2 | AC83: ='3. Объяснительная'!P247 -> 0
D84: средств, полученных от оказания платных услуг и осуществления иной приносящей доход деятельности | Z84: 26/3 | AC84: ='3. Объяснительная'!U247 -> 0
D85: прочих средств | Z85: 26/4 | AC85: ='3. Объяснительная'!Z247 -> 0
A86: III. | D86: Сведения о мерах, принятых по реализации материалов ревизий (проверок)
A87: 1. | D87: Направлено представлений, предписаний (писем, служебных записок): | Z87: 27 | AC87: =SUM(AC88:AE93) -> 5
D88: в МФ РБ (единиц) | Z88: 27/1
D89: в ФУ администраций муниципальных районов и городских округов (единиц) | Z89: 27/2
D90: в администрацию города, района (единиц) | Z90: 27/3 | AC90: 2
D91: руководителю организации и учреждения (единиц) | Z91: 27/4 | AC91: 3
D92: в вышестоящую организацию (единиц) | Z92: 27/5
D93: прочим учреждениям и организациям (единиц) | Z93: 27/6
D94: На сумму выявленных финансовых нарушений в использовании средств | Z94: 28 | AC94: =SUM(AC95:AE98) -> 2236.3
D95: бюджета Республики Башкортостан | Z95: 28/1
D96: бюджета муниципального образования | Z96: 28/2 | AC96: 2236.3
D97: полученных от оказания платных услуг и осуществления иной приносящей доход деятельности | Z97: 28/3
D98: прочих | Z98: 28/4
A99: 2. | D99: Приняты меры по представлениям (предписаниям) | Z99: 29 | AC99: =SUM(AC100:AE105) -> 3
D100: МФ РБ (единиц) | Z100: 29/1
D101: ФУ администраций муниципальных районов и городских округов (единиц) | Z101: 29/2
D102: администрацией города, района (единиц) | Z102: 29/3
D103: руководителем организации и учреждения (единиц) | Z103: 29/4 | AC103: 3
D104: вышестоящей организацией (единиц) | Z104: 29/5
D105: прочими учреждениями и организациями (единиц) | Z105: 29/6
A106: 2.1. | D106: На сумму выявленных финансовых нарушений в использовании средств | Z106: 30 | AC106: =SUM(AC107:AE110) -> 2236
D107: бюджета Республики Башкортостан | Z107: 30/1
D108: бюджета муниципального образования | Z108: 30/2 | AC108: 2236
D109: полученных от оказания платных услуг и осуществления иной приносящей доход деятельности | Z109: 30/3
D110: прочих | Z110: 30/4
A111: 3. | D111: Передано органам прокуратуры и правоохранительным органам материалов ревизий (проверок) – всего: (единиц) | Z111: 31
D112: Наименование правоохранительных органов, которым переданы материалы ревизии (проверки) | Z112: 31/1
D113: Дата передачи (дата сопроводительного письма) | Z113: 31/2
D114: Номер сопроводительного письма, из них: | Z114: 31/3
D115: проведенных по обращениям органов прокуратуры и правоохранительных органов (из строки 31) | Z115: 32
D116: проведенных по прочим основаниям (из строки 31) | Z116: 33
A117: 3.1. | D117: На сумму выявленных финансовых нарушений, в том числе: | Z117: 34 | AC117: =SUM(AC118:AE121) -> 0
D118: в использовании средств бюджета Республики Башкортостан | Z118: 34/1
D119: в использовании средств муниципального образования | Z119: 34/2
D120: в использовании средств, полученных от оказания платных услуг и осуществления иной приносящей доход деятельности | Z120: 34/3
D121: в использовании прочих средств | Z121: 34/4
A122: 4. | D122: Количество возбужденных уголовных дел – всего (единиц), в том числе: | Z122: 35 | AC122: =SUM(AC123:AE124) -> 0
D123: по материалам ревизий и проверок, проведенных по обращению органов прокуратуры и правоохранительных органов (из строки 35) | Z123: 35/1
D124: по материалам ревизий и проверок, переданных по инициативе органов, осуществляющих финансовый контроль (из строки 35) | Z124: 35/2
A125: 4.1 | D125: На сумму выявленных финансовых нарушений, в том числе: | Z125: 36 | AC125: =SUM(AC126:AE129) -> 0
D126: в использовании средств бюджета Республики Башкортостан | Z126: 36/1
D127: в использовании средств муниципального образования | Z127: 36/2
D128: в использовании средств, полученных от оказания платных услуг и осуществления иной приносящей доход деятельности | Z128: 36/3
D129: в использовании прочих средств | Z129: 36/4
A130: 5. | D130: Количество отказов в возбуждении уголовных дел органами прокуратуры и правоохранительными органами – всего (единиц), в том числе: | Z130: 37 | AC130: =SUM(AC131:AE132) -> 0
D131: по материалам ревизий и проверок, проведенных по обращению органов прокуратуры и правоохранительных органов (из строки 37) | Z131: 37/1
D132: по материалам ревизий и проверок, переданных по инициативе органов, осуществляющих финансовый контроль (из строки 37) | Z132: 37/2
A133: 5.1 | D133: На сумму финансовых нарушений, в том числе: | Z133: 38 | AC133: =SUM(AC134:AE137) -> 0
D134: в использовании средств бюджета Республики Башкортостан | Z134: 38/1
D135: в использовании средств муниципального образования | Z135: 38/2
D136: в использовании средств, полученных от оказания платных услуг и осуществления иной приносящей доход деятельности | Z136: 38/3
D137: в использовании прочих средств | Z137: 38/4
A138: IV. | D138: Сведения по протоколам об административных правонарушениях
A139: 1. | D139: Количество протоколов об административных правонарушениях, составленных должностными лицами органов, осуществляющих финансовый контроль (единиц), в том числе: | Z139: 39 | AC139: =SUM(AC140:AE143) -> 0
D140: за нецелевое использование средств бюджета Республики Башкортостан (единиц) | Z140: 39/1
D141: за нецелевое использование средств бюджета муниципального образования (единиц) | Z141: 39/2
D142: за нарушение сроков возврата средств бюджета РБ и сроков перечисления платы за пользование средствами бюджета РБ (единиц) | Z142: 39/3
D143: за нарушение сроков возврата средств бюджета муниципального образования и сроков перечисления платы за пользование средствами бюджета муниципального образования (единиц) | Z143: 39/4
A144: 1.1 | D144: На сумму нецелевого использования бюджетных средств, в том числе: | Z144: 40 | AC144: =SUM(AC145:AE146) -> 0
D145: средств бюджета Республики Башкортостан (из строки 40) | Z145: 40/1
D146: средств бюджета муниципального образования (из строки 40) | Z146: 40/2
A147: 1.2 | D147: На сумму бюджетных средств, невозвращенных в срок и сумму платы за пользование бюджетными средствами, не перечисленной в срок, в том числе: | Z147: 41 | AC147: =SUM(AC148:AE149) -> 0
D148: средств бюджета Республики Башкортостан (из строки 41) | Z148: 41/1
D149: средств бюджета муниципального образования (из строки 41) | Z149: 41/2
A150: 2. | D150: Количество протоколов об административных правонарушениях, по результатам рассмотрения которых наложен административный штраф (единиц), в том числе: | Z150: 42 | AC150: =SUM(AC151:AE154) -> 0
D151: за нецелевое использование средств бюджета РБ (единиц) | Z151: 42/1
D152: за нецелевое использование средств бюджета муниципального образования (единиц) | Z152: 42/2
D153: за нарушение сроков возврата средств бюджета РБ и сроков перечисления платы за пользование средствами бюджета РБ (единиц) | Z153: 42/3
D154: за нарушение сроков возврата средств бюджета муниципального образования и сроков перечисления платы за пользование средствами бюджета муниципального образования (единиц) | Z154: 42/4
A155: 3. | D155: Количество протоколов об административных правонарушениях, по которым дела об административных правонарушениях прекращены (единиц), в том числе: | Z155: 43 | AC155: =SUM(AC156:AE159) -> 0
D156: за нецелевое использование средств бюджета РБ (единиц) | Z156: 43/1
D157: за нецелевое использование средств бюджета муниципального образования (единиц) | Z157: 43/2
D158: за нарушение сроков возврата средств бюджета РБ и сроков перечисления платы за пользование средствами бюджета РБ (единиц) | Z158: 43/3
D159: за нарушение сроков возврата средств бюджета муниципального образования и сроков перечисления платы за пользование средствами бюджета муниципального образования (единиц) | Z159: 43/4
A160: 4. | D160: Количество взысканных штрафных санкций за нарушение бюджетного законодательства (единиц), в том числе: | Z160: 44 | AC160: =SUM(AC161:AE164) -> 0
D161: за нецелевое использование средств бюджета РБ (единиц) | Z161: 44/1
D162: за нецелевое использование средств бюджета муниципального образования (единиц) | Z162: 44/2
D163: за нарушение сроков возврата средств бюджета РБ и сроков перечисления платы за пользование средствами бюджета Республики Башкортостан (единиц) | Z163: 44/3
D164: за нарушение сроков возврата средств бюджета муниципального образования и сроков перечисления платы за пользование средствами бюджета муниципального образования (единиц) | Z164: 44/4
A165: 5. | D165: Взыскано штрафов за нарушение бюджетного законодательства (в рублях), в том числе: | Z165: 45 | AC165: =SUM(AC166:AE167) -> 0
D166: в бюджет Республики Башкортостан (из строки 45) | Z166: 45/1
D167: в бюджет муниципального образования (из строки 45) | Z167: 45/2
A168: 6. | D168: Количество материалов ревизий, направленных в другие органы для наложения административного взыскания – всего (единиц), в том числе: | Z168: 46 | AC168: =SUM(AC169:AE171) -> 0
D169: судебные органы (из строки 46) | Z169: 46/1
D170: налоговые органы (из строки 46) | Z170: 46/2
D171: прочие органы (из строки 46) | Z171: 46/3
A172: 7. | D172: Количество наложенных административных взысканий – всего (единиц), в том числе: | Z172: 47 | AC172: =SUM(AC173:AE175) -> 0
D173: судебными органами (из строки 47) | Z173: 47/1
D174: налоговыми органами (из строки 47) | Z174: 47/2
D175: прочими органами (из строки 47) | Z175: 47/3
A176: 8. | D176: Принято постановлений, решений или приказов органами государственной власти, местного самоуправления и проверяемыми учреждениями (единиц): | Z176: 48
D177: должностное лицо, принявшее постановление, решение, приказ | Z177: 48/1
D178: дата постановления, решения, приказа | Z178: 48/2
D179: номер постановления, решения, приказа | Z179: 48/3
A180: 9. | D180: Число лиц, привлеченных к дисциплинарной ответственности – всего (чел.), в том числе: | Z180: 49
D181: освобождено от занимаемой должности (человек) (из строки 49) | Z181: 49/1
D182: объявлены выговоры, замечания, предупреждения (человек) (из строки 49) | Z182: 49/2
A183: 10. | D183: Число лиц, привлеченных к материальной ответственности (чел) | Z183: 50
A184: V. | D184: Возмещено средств, использованных с нарушением законодательства, дополнительно поступило платежей и предотвращено потерь по результатам проведенных ревизий и проверок
A185: 1. | D185: Сумма возмещенных финансовых нарушений, в том числе: | Z185: 51 | AC185: =SUM(AC186:AE189) -> 2188
D186: средств бюджета Республики Башкортостан | Z186: 51/1 | AC186: =AC191+AC218 -> 0
D187: средств бюджета муниципального образования | Z187: 51/2 | AC187: =AC200+AC219 -> 2188
D188: средств, полученных от оказания платных услуг и осуществления иной приносящей доход деятельности | Z188: 51/3 | AC188: =AC207 -> 0
D189: прочих средств | Z189: 51/4 | AC189: =AC212 -> 0
A190: 1.1. | D190: Восстановлено в добровольном порядке (из строки 51), в том числе: | Z190: 52 | AC190: =SUM(AC191,AC200,AC207,AC212) -> 2188
A191: 1.1.1 | D191: средств бюджета Республики Башкортостан (из строки 52) | Z191: 52/1 | AC191: =AC192+AC195 -> 0
D192: в доход бюджета Республики Башкортостан (из строки 52/1) | Z192: 52/1/1 | AC192: =SUM(AC193:AE194) -> 0
D193: на код ГАД - Минфин РБ (из строки 52/1/1) | Z193: 52/1/1/1
D194: на код ГАД - ГРБС (из строки 52/1/1) | Z194: 52/1/1/2
D195: на счета и в кассу учреждения (из строки 52/1) | Z195: 52/1/2 | AC195: =SUM(AC196:AE199) -> 0
D196: на лицевые счета учреждения (из строки 52/1/2) | Z196: 52/1/2/1
D197: в кассу учреждения (из строки 52/1/2) | Z197: 52/1/2/2
D198: В регистрах бухгалтерского учета учреждения (из строки 52/1/2) | Z198: 52/1/2/3
D199: оприходованы излишки и неучтенные ценности, денежные средства (из строки 52/1/2) | Z199: 52/1/2/4
A200: 1.1.2 | D200: средств бюджета муниципального образования (из строки 52) | Z200: 52/2 | AC200: =SUM(AC201:AE202) -> 2188
D201: в доход бюджета муниципального образования (из строки 52/2) | Z201: 52/2/1
D202: на счета и в кассу учреждения (из строки 52/2) | Z202: 52/2/2 | AC202: =SUM(AC203:AE206) -> 2188
... 90 more rows

Sheet 5. Объекты КМ
A1: Сведения об объектах контроля
A2: =CONCATENATE('1. Начальные данные'!L18,'1. Начальные данные'!M18) -> 429162017
A3: ='1. Начальные данные'!L17 -> ФУ Администрации МР Нуримановский район РБ
A5: № | B5: Объект контроля | C5: Тема КМ | D5: Проверяемый период (дд.мм.год-дд.мм.год) | E5: Сроки проведения КМ (дд.мм.год-дд.мм.год)
A6: 1 | B6: МБОУ СОШ с.Старокулево | C6: проверка соблюдения трудового законодательства и иных нормативных правовых актов, содержащих нормы трудового права | D6: 01.01.2016-31.12.2016 | E6: 30.01.2017г-01.03.2017
A7: 2 | B7: Нуримановское МУП ЖКХ | C7: внеплановая документальная проверка ФХД с проведением полной инвентаризации муниципального имущества, находящегося в хозяйственном ведении Нуримановское МУП ЖКХ | D7: 01.08.2014-20.03.2017 | E7: 22.03.2017 - 21.04.2017
A8: 3 | B8: МАОУ СОШ с.Красный Ключ | C8: плановая камеральная ревизия плана ФХД | D8: 01.04.2013-31.03.2017 | E8: 28.03.2017 г -28.04.2017
A9: 4
A10: 5
A11: 6
A12: 7
A13: 8
A14: 9
A15: 10
A16: 11
A17: 12
A18: 13
A19: 14
A20: 15
A21: 16
A22: 17
A23: 18
A24: 19
A25: 20
A26: 21
A27: 22
A28: 23
A29: 24
A30: 25
A31: 26
A32: 27
A33: 28
A34: 29
A35: 30
A36: 31
A37: 32
A38: 33
A39: 34
A40: 35
A41: 36
A42: 37
A43: 38
A44: 39
A45: 40
A46: 41
A47: 42
A48: 43
A49: 44
A50: 45
A51: 46
A52: 47
A53: 48
A54: 49
A55: 50
A56: 51
A57: 52
A58: 53
A59: 54
A60: 55
A61: 56
A62: 57
A63: 58
A64: 59
A65: 60
A66: 61
A67: 62
A68: 63
A69: 64
A70: 65
A71: 66
A72: 67
A73: 68
A74: 69
A75: 70
A76: 71
A77: 72
A78: 73
A79: 74
A80: 75
A81: 76
A82: 77
A83: 78
A84: 79
A85: 80
A86: 81
A87: 82
A88: 83
A89: 84
A90: 85
A91: 86
A92: 87
A93: 88
A94: 89
A95: 90
A96: 91
A97: 92
A98: 93
A99: 94
A100: 95
A101: 96
A102: 97
A103: 98
A104: 99
A105: 100
A106: 101
A107: 102
A108: 103
A109: 104
A110: 105
A111: 106
A112: 107
A113: 108
A114: 109
A115: 110
A116: 111
A117: 112
A118: 113
A119: 114
A120: 115
A121: 116
A122: 117
A123: 118
A124: 119
A125: 120
A126: 121
A127: 122
A128: 123
A129: 124
A130: 125
A131: 126
A132: 127
A133: 128
A134: 129
A135: 130
A136: 131
A137: 132
A138: 133
A139: 134
A140: 135
A141: 136
A142: 137
A143: 138
A144: 139
A145: 140
A146: 141
A147: 142
A148: 143
A149: 144
A150: 145
A151: 146
A152: 147
A153: 148
A154: 149
A155: 150
A156: 151
A157: 152
A158: 153
A159: 154
A160: 155
A161: 156
A162: 157
A163: 158
A164: 159
A165: 160
A166: 161
A167: 162
A168: 163
A169: 164
A170: 165
A171: 166
A172: 167
A173: 168
A174: 169
A175: 170
A176: 171
A177: 172
A178: 173
A179: 174
A180: 175
A181: 176
A182: 177
A183: 178
A184: 179
A185: 180
A186: 181
A187: 182
A188: 183
A189: 184
A190: 185
A191: 186
A192: 187
A193: 188
A194: 189
A195: 190
A196: 191
A197: 192
A198: 193
A199: 194
A200: 195
A201: 196
... 204 more rows

Sheet 6. Обратная связь
A1: В какой программе вам более удобно заполнять данный отчет?
A2: [выберите один из вариантов]

Sheet 7. Реал.полном.
D1: Приложение
A2: Информация о реализации контрольных полномочий в сфере закупок товаров, работ, услуг для обеспечения муниципальных нужд Республики Башкортостан за 2 квартал 2017 года
A4: Наименование показателя | B4: Ед.измерения | C4: Количество (сведения)
A5: Наименование муниципального образования | B5: - | C5: Администрация МР Нуримановский район РБ
A6: 1. Сведения об органах, осуществляющих контрольные функции
A7: 1.1. Количество действующих на территории субъекта органов, осуществляющих контрольные функции, в том числе: | B7: шт. | C7: 1
A8: 1.1.1. Контроль в сфере закупок | B8: шт. | C8: 1
A9: 1.1.2. Внутренний муниципальный финансовый контроль | B9: шт. | C9: 1
A10: 1.2. Количество проведенных проверок органами внутреннего муниципального финансового контроля: | B10: шт.
A11: плановые | B11: шт.
A12: внеплановые | B12: шт.
A13: 2. Результаты деятельности контрольных органов в сфере закупок
A14: 2.1. Количество жалоб на действия (бездействие) заказчика, уполномоченного органа, уполномоченного учреждения, специализированной организации, комиссии, по осуществлению закупок, ее членов, должностного лица контрактной службы, контрактного управляющего, из них: | B14: шт. | C14: 0
A15: признано обоснованными | B15: шт.
A16: основные причины жалоб* | B16: пункт, часть, статья
A17: возвращено заявителю | B17: шт.
A18: 2.2. Общее количество выданных предписаний об устранении правонарушений, в том числе: | B18: шт. | C18: 0
A19: об аннулировании определения поставщиков (подрядчиков, исполнителей) | B19: шт.
A20: 2.3. Количество возбужденных дел об административных правонарушениях за нарушения законодательства Российской Федерации о контрактной системе в сфере закупок | B20: шт. | C20: 0
A21: основные причины возбуждения дел | B21: пункт, часть, статья
A22: 2.4. Количество выданных постановлений о наложении административных штрафов | B22: шт. | C22: 0
A23: сумма наложенных административных штрафов | B23: тыс.руб.
A24: сумма взысканных административных штрафов* | B24: тыс.руб.
A25: 3. Результаты деятельности органов муниципального финансового контроля
A26: 3.1. Общее количество выданных предписаний, в том числе: | B26: шт. | C26: 0
A27: обжаловано предписаний в судах, из них: | B27: шт.
A28: обосновано | B28: шт.
A29: не обосновано | B29: шт.
A30: 3.2. Количество обжалований в досудебном (внесудебном) порядке действий (бездействия) должностных лиц, из них: | B30: шт. | C30: 0
A31: обосновано | B31: шт.
A32: не обосновано | B32: шт.
A34: * Указана сумма взысканных административных штрафов за текущий и предыдущий год

Sheet Контроль (hidden)
A1: Уровень | C1: Платформа для отчетности | F1: Версия файла | G1: 1.1
A2: Государственный | C2: БашФин | F2: Дата | G2: 2017-04-21
A3: Муниципальный | C3: Excel
A5: Дата
A6: 1 апреля
A7: 1 июля
A8: 1 октября
A9: 1 января
A11: Год
A12: 2017 года
A13: 2018 года
A14: 2019 года
A15: 2020 года
A16: 2021 года
A17: 2022 года
A18: 2023 года
A19: 2024 года
A21: МО | C21: ГРБС
A22: Администрация ГО г. Агидель РБ | C22: Агентство по печати РБ
A23: Администрация ГО г. Кумертау РБ | C23: Госкомитет РБ по делам юстиции
A24: Администрация ГО г. Нефтекамск РБ | C24: Госкомитет РБ по информатизации и вопросам функционирования системы «Открытая Республика»
A25: Администрация ГО г. Октябрьский РБ | C25: Госкомитет РБ по строительству и архитектуре
A26: Администрация ГО г. Салават РБ | C26: Госкомитет РБ по торговле и защите прав потребителей
A27: Администрация ГО г. Сибай РБ | C27: Госкомитет РБ по транспорту и дорожному хозяйству
A28: Администрация ГО г. Стерлитамак РБ | C28: Госкомитет РБ по чрезвычайным ситуациям
A29: Администрация ГО г. Уфа РБ | C29: Государственное бюджетное научное учреждение "Академия наук РБ"
A30: Администрация ЗАТО г. Межгорье РБ | C30: Министерство жилищно-коммунального хозяйства РБ
A31: Администрация МР Абзелиловский район РБ | C31: Министерство здравоохранения РБ
A32: Администрация МР Альшеевский район РБ | C32: Министерство земельных и имущественных отношений РБ
A33: Администрация МР Архангельский район РБ | C33: Министерство культуры РБ
A34: Администрация МР Аскинский район РБ | C34: Министерство лесного хозяйства РБ
A35: Администрация МР Аургазинский район РБ | C35: Министерство молодежной политики и спорта РБ
A36: Администрация МР Баймакский район РБ | C36: Министерство образования РБ
A37: Администрация МР Бакалинский район РБ | C37: Министерство природопользования и экологии РБ
A38: Администрация МР Балтачевский район РБ | C38: Министерство промышленности и инновационной политики РБ
A39: Администрация МР Белебеевский район РБ | C39: Министерство сельского хозяйства РБ
A40: Администрация МР Белокатайский район РБ | C40: Министерство труда и социальной защиты населения РБ
A41: Администрация МР Белорецкий район РБ | C41: Министерство экономического развития РБ
A42: Администрация МР Бижбулякский район РБ | C42: Управление ветеринарии РБ
A43: Администрация МР Бирский район РБ | C43: Управление делами Главы РБ
A44: Администрация МР Благоварский район РБ | C44: Управление по государственной охране объектов культурного наследия Республики Башкортостан
A45: Администрация МР Благовещенский район РБ | C45: Управление по делам архивов РБ
A46: Администрация МР Буздякский район РБ
A47: Администрация МР Бураевский район РБ
A48: Администрация МР Бурзянский район РБ
A49: Администрация МР Гафурийский район РБ
A50: Администрация МР Давлекановский район РБ
A51: Администрация МР Дуванский район РБ
A52: Администрация МР Дюртюлинский район РБ
A53: Администрация МР Ермекеевский район РБ
A54: Администрация МР Зианчуринский район РБ
A55: Администрация МР Зилаирский район РБ
A56: Администрация МР Иглинский район РБ
A57: Администрация МР Илишевский район РБ
A58: Администрация МР Ишимбайский район РБ
A59: Администрация МР Калтасинский район РБ
A60: Администрация МР Караидельский район РБ
A61: Администрация МР Кармаскалинский район РБ
A62: Администрация МР Кигинский район РБ
A63: Администрация МР Краснокамский район РБ
A64: Администрация МР Кугарчинский район РБ
A65: Администрация МР Кушнаренковский район РБ
A66: Администрация МР Куюргазинский район РБ
A67: Администрация МР Мелеузовский район РБ
A68: Администрация МР Мечетлинский район РБ
A69: Администрация МР Мишкинский район РБ
A70: Администрация МР Миякинский район РБ
A71: Администрация МР Нуримановский район РБ
A72: Администрация МР Салаватский район РБ
A73: Администрация МР Стерлибашевский район РБ
A74: Администрация МР Стерлитамакский район РБ
A75: Администрация МР Татышлинский район РБ
A76: Администрация МР Туймазинский район РБ
A77: Администрация МР Уфимский район РБ
A78: Администрация МР Учалинский район РБ
A79: Администрация МР Федоровский район РБ
A80: Администрация МР Хайбуллинский район РБ
A81: Администрация МР Чекмагушевский район РБ
A82: Администрация МР Чишминский район РБ
A83: Администрация МР Шаранский район РБ
A84: Администрация МР Янаульский район РБ

Sheet Контроль2 (hidden)
A1: Классификатор в алфавитном порядке
A2: Нецелевое использование средств | B2: 17
A3: Другие нарушения в части нецелевого использования бюджетных средств | B3: 17.2.1.20.
A4: Использование бюджетных средств (принятие и исполнение денежных обязательств) на оплату пособий, компенсаций, субсидий и других денежных выплат лицам, не имеющим правовых оснований для их получения. | B4: 17.2.1.3.
A5: Использование бюджетных средств (принятие и исполнение денежных обязательств) на оплату расходов, которые должны осуществляться за счет доходов от предпринимательской и иной приносящей доход деятельности или иных источников. | B5: 17.2.1.2.
A6: Использование бюджетных средств на оплату расходов на строительство объектов и строек, не предусмотренных проектно-сметной документацией или при отсутствии утвержденной проектно-сметной документации, экспертизы проекта. | B6: 17.2.1.9.
A7: Использование бюджетных средств на оплату расходов, не предусмотренных сметой доходов и расходов (бюджетной сметой с 01.01.2008 года), либо иным правовым основаниям их получения в финансовом году. | B7: 17.2.1.6.
A8: Использование бюджетных средств на оплату товаров, работ, услуг, не связанных с деятельностью получателя бюджетных средств, на оказание финансовой помощи коммерческим организациям или на их создание. | B8: 17.2.1.5.
A9: Использование бюджетных средств получателями на цели, не соответствующие условиям, определенным законодательством, регулирующим их деятельность. | B9: 17.2.1.8.
A10: Использование средств целевого бюджетного финансирования (в рамках реализации приоритетных национальных проектов, целевых программ и т.д.), бюджетных кредитов, бюджетных инвестиций не по назначению - на цели, не соответствующие условиям, определенным соответствующим нормативным актом. | B10: 17.2.1.7.
A11: Нецелевое использование субсидии автономным и бюджетным учреждением | B11: 17.2.1.20.1.
A12: Нецелевое использование субсидии автономным и бюджетным учреждением, предусмотренныена содержание имущества | B12: 17.2.1.20.2.
A13: Нецелевое использование субсидии. Нарушение по условиям соглашений в части софинансирования соответствующих обязательств за счет средств местного бюджета (полученная субсидия, предусмотренная по соглашению направлена на иные цели ) | B13: 17.2.1.20.3
A14: Перечисление неиспользованных остатков бюджетных средств на счета других юридических лиц или на счет по учету средств, полученных от предпринимательской и иной приносящей доход деятельности. | B14: 17.2.1.4.
A15: Расходование средств, полученных от предпринимательской и иной приносящей доход деятельности, на цели, не предусмотренные сметой доходов и расходов (бюджетной сметой с 01.01.2008 года) бюджетного учреждения. | B15: 17.5.2.2.
A16: Неэффективное использование материальных ресурсов и денежных средств | B16: 18
A17: Безвозмездная передача государственного (муниципального) имущества (собственности) при отсутствии достаточных на то оснований. Передача имущества другим юридическим и физическим лицам без разрешения собственника. | B17: 18.3.1.13.
A18: Дебиторская задолженность по оплате работ по текущему и капитальному ремонту, реконструкции и строительству (в случаях, когда авансирование договором не предусмотрено, либо перечисление аванса произведено в размерах, превышающих размеры, установленные действующим законодательством). | B18: 18.2.3.14.
A19: Дебиторская задолженность по оплате товаров (работ, услуг) (в случаях, когда авансирование договором не предусмотрено, либо перечисление аванса произведено в размерах, превышающих размеры, установленные действующим законодательством). | B19: 18.2.3.13.
A20: Другие нарушения при осуществлении бюджетными учреждениями предпринимательской и иной приносящей доход деятельности. | B20: 18.5.2.9.
A21: Другие нарушения при распоряжении государственным (муниципальным) имуществом | B21: 18.3.1.22.
A22: Другие нарушения, влекущие правонарушения в сфере исполнения бюджета по расходам. | B22: 18.1.2.36.
A23: Другие неэффективные расходы. Неэффективные нарушения в использовании средств, выделенных на софинансирование расходов по модернизации систем наружного освещения населенных пунктов Республики Башкортостан на 2011–2015 годы. | B23: 18.18.2.3.37.
A24: Другие неэффективные расходы. Неэффективные нарушения использовании средств, выделенных на реализацию республиканской адресной программы по проведению капитального ремонта многоквартирных домов | B24: 18.18.2.3.38.
A25: Другие неэффективные расходы. Неэффективные расходы средств, выделенных на реализацию адресной программы Республики Башкортостан на период 2011 - 2015 годов по замене и модернизации лифтов, отработавших нормативный срок службы. | B25: 18.18.2.3.36.
A26: Заключение государственных (муниципальных) контрактов без установления обязательных условий, несоответствия конкурсной документации. | B26: 18.2.3.7.
A27: Заключение государственных (муниципальных) контрактов с единственным поставщиком (в установленных случаях) без соблюдения установленных процедур и с нарушением закона. | B27: 18.2.3.4.
A28: Закупки товаров, работ и услуг сверх установленных законодательством сумм без заключения государственных (муниципальных) контрактов (в т.ч. необоснованное дробление объемов работ, закупок при размещении заказов). | B28: 18.2.3.1.
A29: Закупки, в которых выявлено несоответствие использования поставленного товара, выполненной работы (ее результата) или оказанной услуги целям осуществления закупки | B29: 18.2.3.11.5.
A30: Закупки, в которых выявлено несоответствие поставленного товара выполненной работы (ее результата) или оказанной услуги условиям контракта | B30: 18.2.3.11.3.
A31: Закупки, в которых выявлены нарушения в части своевременности, полноты и достоверности отражения в документах учета поставленного товара. Выполненной работы (ее результата) или оказанной услуги | B31: 18.2.3.11.4.
A32: Закупки, в которых выявлены нарушения при применении заказчиком мер ответственности и совершения иных действий в случае нарушения поставщиком (подрядчиком, исполнителем) условий контракта | B32: 18.2.3.11.2.
A33: Затраты государственного (муниципального) имущества сверх необходимого (возможного) на получение требуемого результата. | B33: 18.3.1.17.
A34: Затраты государственного имущества без достижения требуемого результата. | B34: 18.3.1.18.
A35: Иные нарушения в части неэффективного использования бюджетных средств. | B35: 18.2.3.31.
A36: Иные нарушения в части неэффективного использования бюджетных средств. В образовательных учреждениях при отсутствии лицензии на осуществление медицинской деятельности произведены расходы по выплате заработной плате медицинским сестрам какие функция она выполняет, (введено в штат. Расписание должность медсестры, а должны по согл-ю с МО, МЗ РБ работать медперсонал с больницы) | B36: 18.18.2.3.40.
A37: Иные нарушения в части неэффективного использования бюджетных средств. Нарушения по энергосбережению и повышению энергетической | B37: 18.2.3.34.
A38: Иные нарушения в части неэффективного использования бюджетных средств. Непринятие мер по обеспечению снижения количества потребляемых коммунальных услуг | B38: 18.18.2.3.39.
A39: Иные нарушения в части неэффективного использования бюджетных средств. Оплата транспортного налога за неэксплуатируемый транспорт. | B39: 18.2.3.32.
A40: Иные нарушения в части неэффективного использования бюджетных средств. Погашение кредиторской задолженности, образованной в прошлом периоде при наличии ЛБО | B40: 18.2.3.35.
A41: Иные нарушения в части неэффективного использования средств. (Хозяйствующий субъект) | B41: 18.18.2.3.41.
A42: Иные нарушения при осуществлении государственных (муниципальных) закупок и исполнении государственных (муниципальных) контрактов, договоров (приобретение жилых помещений для детей-сирот не соответствующих техническому заданию контракта). | B42: 18.2.3.11.1.
A43: Иные нарушения при осуществлении государственных (муниципальных) закупок и исполнении государственных (муниципальных) контрактов, договоров. | B43: 18.2.3.11.
A44: Направление средств резервных фондов на цели, отличные от их назначения (в нарушение порядка, установленного соответствующими нормативно-правовыми актами). | B44: 18.1.2.9.
A45: Направление средств, полученных от предпринимательской и иной приносящей доход деятельности, на цели, не предусмотренные нормативными правовыми актами и разрешительными документами. | B45: 18.5.2.1.
A46: Нарушение порядка размещения бюджетных средств на банковских депозитах или передачи их в доверительное управление.Неэффективное размещение государственных средств в кредитных организациях. | B46: 18.1.2.33.
A47: Нарушение порядка распоряжения объектом нежилого фонда, находящимся в государственной собственности Республики Башкортостан или муниципальной собственности, и использования указанного объекта. Предоставление государственного (муниципального) имущества без согласия собственника в пользование, без получения доходов от его использования в соответствующий бюджет. | B47: 18.1.1.11.
A48: Нарушение сроков подтверждения денежных обязательств, влекущее выплату пени, штрафов. | B48: 18.1.2.18.
A49: Нарушения при распоряжении имущества автономных и бюджетных учреждений (особо ценного имущества, движимого имущества и недвиженого имущества, находящегося в собственности субъекта Российской Федерации, находящегося в муниципальной собственности) | B49: 18.3.1.23.
A50: Начисление выплат по заработной плате по вредности | B50: 18.2.2.3.
A51: Не соблюдение стандартов расходов на содержание органов государственной власти (местного самоуправления) (в т.ч. завышение норм занимаемых площадей). | B51: 18.2.3.16.
A52: Не соблюдение требований законодательства о размещении заказов на поставки товаров, выполнение работ, оказание услуг для государственных и муниципальных нужд при осуществлении конкурсных, аукционных процедур и процедур запроса котировок. | B52: 18.2.3.3.
A53: Не соблюдение условий возмездности и возвратности при предоставлении бюджетных кредитов | B53: 18.1.2.20.
A54: Невыполнение договорных обязательств; непринятие мер по погашению кредиторской задолженности. | B54: 18.5.2.8.
A55: Неисполнение поставщиками (подрядчиками) условий государственных (муниципальных) контрактов, договоров по соблюдению договорных цен. | B55: 18.2.3.6.
A56: Неосвоение, неиспользование (неполное использование) имущества. | B56: 18.3.1.19.
A57: Непередача, неполная, несвоевременная передача государственного (муниципального) имущества. Передача имущества без соответствующего документального оформления. | B57: 18.3.1.15.
A58: Неперечисление (несвоевременное или неполное перечисление) в бюджет средств, полученных от распоряжения государственной (муниципальной) собственностью, использования государственной (муниципальной) собственности, предоставления государственных (муниципальных) услуг. | B58: 18.1.1.5.
A59: Неполное либо несвоевременное перечисление бюджетным учреждением платежей в бюджет и государственные внебюджетные фонды, повлекшее начисление финансовых санкций. | B59: 18.2.3.30.
A60: Неправомерное использование доходов, полученных сверх утвержденных законом о бюджете. | B60: 18.1.2.10.
A61: Неправомерное осуществление государственных (муниципальных) заимствований. | B61: 18.1.2.26.
A62: Неправомерное получение кредита бюджетным учреждением | B62: 18.2.3.12.
A63: Неправомерное предоставление в пользование или залог объектов государственной (муниципальной) собственности | B63: 18.3.1.9.
A64: Неправомерное предоставление льгот, отсрочек, рассрочек по обязательным платежам в бюджет, налоговых кредитов и налоговых инвестиционных кредитов, а также отсутствие соответвующего контроля за выполнением условий, на которых были предоставлены льготы, отсрочки, рассрочки по платежам в бюджет, налоговые кредиты и налоговые инвестиционные кредиты. | B64: 18.1.1.1.
A65: Неправомерное предоставление льгот, отсрочек, рассрочек по платежам за пользование государственным (муниципальным) имуществом. | B65: 18.1.1.13.
A66: Неправомерное списание задолженности по налогам и другим обязательным платежам. | B66: 18.1.1.2.
A67: Неправомерное финансирование местных органов власти и организаций за счет средств бюджета Республики Башкортостан (при отсутствии правовых оснований). | B67: 18.1.2.13.
A68: Неправомерное финансирование расходных обязательств Республики Башкортостан за счет средств местных бюджетов (при отсутствии правовых оснований). | B68: 18.1.2.12.
A69: Неправомерное финансирование федеральных органов государственной власти и организаций за счет средств бюджетов субъектов РФ и (или) местных бюджетов (при отсутствии правовых оснований). | B69: 18.1.2.11.
A70: Непринятие мер по взысканию недоимки по налогам, сборам и обязательным платежам в доход бюджета, в том числе отсутствие контроля за правильностью исчисления, полнотой и своевременностью уплаты, начисления и учета, взыскания и принятия решений о возврате (зачете) излишне уплаченных (взысканных) платежей, пеней и штрафов по ним. | B70: 18.1.1.3.
A71: Несоблюдение нормативов финансовых затрат на оказание государственных или муниципальных услуг. | B71: 18.2.3.15.
A72: Неэффективное использование бюджетных средств в результате возмещения учреждением (организацией) материального ущерба и морального вреда, причиненного действиями работника. | B72: 18.2.3.25.
A73: Неэффективное использование бюджетных средств в результате ущерба, причиненного дорожно-транспортным происшествием, не возмещенного виновным лицом. | B73: 18.3.1.21.
A74: Неэффективное использование бюджетных средств вследствие заключения сделок, признанных судом недействительными. | B74: 18.2.3.9.
A75: Неэффективное использование бюджетных средств вследствие нарушений в оформлении государственных (муниципальных) контрактов, договоров, актов выполненных работ, других документов. | B75: 18.2.3.5.
A76: Неэффективное использование бюджетных средств вследствие недобора платы за проживание и коммунальные услуги с лиц, занимающих жилые помещения, состоящие на балансе учреждения. | B76: 18.2.3.27.
A77: Неэффективное использование бюджетных средств вследствие необоснованного применения норм естественной убыли. | B77: 18.2.3.23.
A78: Неэффективное использование бюджетных средств вследствие неоприходования стоимости материалов, полученных от разборки объектов основных средств. | B78: 18.2.3.24.
A79: Неэффективное использование бюджетных средств вследствие неприменения штрафных санкций к поставщикам и подрядчикам, нарушившим обязательства по условиям государственного (муниципального) контракта, договора. | B79: 18.2.3.8.
A80: Неэффективное использование бюджетных средств вследствие образования дебиторской задолженности по заработной плате за уволенными работниками. | B80: 18.2.3.28.
A81: Неэффективное использование бюджетных средств вследствие приобретения или списания некачественной продукции или продукции с истекшим сроком хранения (использования). | B81: 18.2.3.21.
A82: Неэффективное использование бюджетных средств вследствие приобретения неиспользуемого оборудования, либо ремонт такого оборудования и имущества. | B82: 18.2.3.26.
A83: Неэффективное использование бюджетных средств вследствие реализации материальных ресурсов по заниженным ценам, либо по ценам приобретения без учета действующих на момент реализации рыночных цен. | B83: 18.2.3.22.
A84: Неэффективное использование субсидии автономными и бюджетными учреждениями | B84: 18.2.3.33.
A85: Неэффективное управление объектами государственной и муниципальной собственности, убыточная, неприбыльная деятельность государственных и муниципальных унитарных предприятий, акционерных обществ и других организаций с участием государства; получение меньших, чем возможно, прибыли, дивидендов по акциям. | B85: 18.3.1.20.
A86: Образование кредиторской задолженности вследствие принятия организаций дополнительных обязательств в результате нарушения режима экономии средств. | B86: 18.2.3.29.
A87: Оплата работ, которые должны выполняться для бюджетных учреждений бесплатно. | B87: 18.2.3.19.
A88: Осуществление бюджетных инвестиций в объекты государственной и муниципальной собственности с нарушением установленного порядка. | B88: 18.1.2.30.
A89: Осуществление государственных, муниципальных закупок, размещения заказа на поставки товаров, выполнение работ, оказание услуг для государственных и муниципальных нужд, без проведения процедур, предусмотренных законодательством. | B89: 18.2.3.2.
A90: Отсутствие контроля за использованием объектов государственной (муниципальной) собственности. | B90: 18.3.1.16.
A91: Отсутствие, несвоевременное принятие локальных правовых актов, определяющих порядок использования средств бюджетной системы. | B91: 18.2.3.20.
A92: Предоставление бюджетных инвестиций без оформления доли Республики Башкортостан (муниципального образования) в уставных (складочных) капиталах юридических лиц. | B92: 18.1.2.29.
A93: Предоставление бюджетных кредитов с нарушением закона (решения) о бюджете. | B93: 18.1.2.22.
A94: Приобретение товарно-материальных ценностей, выполнение работ, оказание услуг по завышенным ценам в результате указания в конкурсной и иной документации завышенной начальной цены контракта по сравнению со средней рыночной ценой в регионе. | B94: 18.2.3.10.
A95: Расходование бюджетных средств без достижения требуемого результата. | B95: 18.2.3.18.
A96: Расходование бюджетных средств с затратами сверх необходимого (возможного) на получение требуемого результата. | B96: 18.2.3.17.
A97: Финансирование расходов, не предусмотренных законом о бюджете и (или) бюджетной росписью. | B97: 18.1.2.5.
A98: Финансирование расходов, не предусмотренных законом о бюджете и (или) бюджетной росписью. | B98: 18.1.2.5.
A99: Недостача денежных средств | B99: 19
A100: Недостача наличных денежных средств, бланков строгой отчетности в кассе организации. | B100: 19.2.2.55.
A101: Недостача материальных ресурсов | B101: 20
A102: Нарушение порядка приватизации государственного (муниципального) имущества | B102: 20.3.1.12.
A103: Недостача государственного (муниципального) имущества. | B103: 20.3.1.3.
A104: Недостача товарно-материальных ценностей. | B104: 20.2.2.54.
A105: Недопоступление платежей в бюджет | B105: 21
A106: Другие нарушения при осуществлении бюджетными учреждениями предпринимательской и иной приносящей доход деятельности. | B106: 21.5.2.9.
A107: Другие нарушения, влекущие недопоступление средств в доход бюджета. | B107: 21.1.1.15.
A108: Нарушение порядка зачисления средств в доход бюджета. | B108: 21.1.1.14.
A109: Нарушение порядка распоряжения объектом нежилого фонда, находящимся в государственной собственности Республики Башкортостан или муниципальной собственности, и использования указанного объекта. Предоставление государственного (муниципального) имущества без согласия собственника в пользование, без получения доходов от его использования в соответствующий бюджет. | B109: 21.1.1.11.
A110: Не предъявления требований к возмещению сумм, уплаченных по муниципальной гарантии. | B110: 21.1.2.28.
A111: Неперечисление (несвоевременное или неполное перечисление) в бюджет дивидендов по акциям (долям), принадлежащим Республике Башкортостан или муниципальному образованию (при наличии решения о выплате дивидендов). | B111: 21.1.1.9.
A112: Неперечисление (несвоевременное или неполное перечисление) в бюджет средств, полученных от распоряжения государственной (муниципальной) собственностью, использования государственной (муниципальной) собственности, предоставления государственных (муниципальных) услуг. | B112: 21.1.1.5.
A113: Неперечисление (несвоевременное или неполное перечисление) в бюджет установленной доли чистой прибыли государственными унитарными предприятиями (муниципальными унитарными предприятиями). | B113: 21.1.1.8.
A114: Неперечисление (несвоевременное или неполное перечисление) в доход бюджета взыскиваемых сумм принудительного изъятия (штрафов, конфискаций и др.), а также доходов, полученных в виде возмещения ущерба. | B114: 21.1.1.6.
A115: Неперечисление (несвоевременное или неполное перечисление) в доход бюджета дебиторской задолженности прошлых лет, поступившей на счета получателей бюджетных средств в текущем году. | B115: 21.1.1.7.
A116: Непоступление либо недопоступление средств в бюджет от реализация государственной (муниципальной) собственности (в т.ч. реализация государственной (муниципальной) собственности по заниженной стоимости, снижение стоимости реализуемого имущества вследствие естественной убыли или его порчи). | B116: 21.1.1.10.
A117: Неправомерное предоставление в пользование или залог объектов государственной (муниципальной) собственности | B117: 21.3.1.9.
A118: Непринятие мер по взысканию арендной платы за пользование государственным (муниципальным) имуществом | B118: 21.3.1.8.
A119: Непринятие мер по взысканию арендной платы за пользование государственным (муниципальным) имуществом. Занижение и недополучение размеров арендной платы за использование государственного (муниципального) имущества. | B119: 21.1.1.12.
A120: Непринятие мер по взысканию недоимки по налогам, сборам и обязательным платежам в доход бюджета, в том числе отсутствие контроля за правильностью исчисления, полнотой и своевременностью уплаты, начисления и учета, взыскания и принятия решений о возврате (зачете) излишне уплаченных (взысканных) платежей, пеней и штрафов по ним. | B120: 21.1.1.3.
A121: Непринятие мер по своевременному и полному получению в бюджетную систему средств, предоставленных на возвратной основе, а также платы за пользование этими средствами (включая бюджетные кредиты). | B121: 21.1.1.4.
A122: Несоблюдение условий договора аренды, занижение размеров арендной платы за использование государственного и муниципального имущества, в том числе предоставление во временное пользование имущества излишней площади, чем предусмотрено договором; несоблюдение сроков оплаты по договорам. | B122: 21.3.1.7.
A123: Осуществление деятельности при отсутствии необходимых разрешений (лицензий, аттестации, аккредитации) или с их нарушением. | B123: 21.5.2.6.
A124: Осуществление деятельности, не предусмотренной учредительными документами. | B124: 21.5.2.5.
A125: Предоставление государственного (муниципального) имущества в аренду и субаренду без согласия собственника, без заключения договоров или без их регистрации в установленном порядке. | B125: 21.3.1.6.
A126: Реализация государственной (муниципальной) собственности с получением меньших, чем было возможно, средств (в т.ч. реализация государственной собственности по заниженной стоимости, снижение стоимости реализуемого имущества вследствие естественной убыли или его порчи) | B126: 21.3.1.14.
A127: Налоговые платежи | B127: 22
A128: Другие нарушения, влекущие недопоступление средств в доход бюджета | B128: 22.1.1.15.
A129: Предоставление государственного (муниципального) имущества в аренду и субаренду без согласия собственника, без заключения договоров или без их регистрации в установленном порядке. | B129: 22.3.1.6.
A130: Неналоговые платежи | B130: 23
A131: Нарушение порядка приватизации государственного (муниципального) имущества | B131: 23.1.1.12.
A132: Нарушение порядка приватизации государственного (муниципального) имущества | B132: 23.3.1.12.
A133: Нарушение порядка распоряжения объектом нежилого фонда, находящимся в государственной собственности Республики Башкортостан или муниципальной собственности, и использования указанного объекта. Предоставление государственного (муниципального) имуществ | B133: 23.1.1.11.
A134: Не погашены пени за несвовременную уплату процентов по использованию бюджетных средств | B134: 23.1.1.4.
A135: Невзысканны пени в бюджет по арендной плате за землю | B135: 23.1.1.15.
A136: Неперечисление (несвоевременное или неполное перечисление) в бюджет средств, полученных от распоряжения государственной (муниципальной) собственностью, использования государственной (муниципальной) собственности, предоставления государственных (муниц | B136: 23.1.1.5.
A137: Неперечисление (несвоевременное или неполное перечисление) в бюджет установленной доли чистой прибыли государственными унитарными предприятиями (муниципальными унитарными предприятиями) | B137: 23.1.1.8.
A138: Непоступление либо недопоступление средств в бюджет от реализация государственной (муниципальной) собственности (в т.ч. реализация государственной (муниципальной) собственности по заниженной стоимости, снижение стоимости реализуемого имущества вследс | B138: 23.1.1.10.
A139: Неправомерное предоставление в пользование или залог объектов государственной (муниципальной) собственности | B139: 23.3.1.9.
A140: Неправомерное предоставление льгот, отсрочек, рассрочек по платежам за пользование государственным (муниципальным) имуществом | B140: 23.1.1.13.
A141: Непринятие мер по взысканию арендной платы за пользование государственным (муниципальным) имуществом | B141: 23.3.1.8.
A142: Непринятие мер по взысканию пени за несвоевременное перечисление в доход бюджета доли чистой прибыли муниципальных унитарных предприятий | B142: 23.1.1.3.
A143: Несоблюдение условий договора аренды, занижение размеров арендной платы за использование государственного и муниципального имущества, в том числе предоставление во временное пользование имущества излишней площади, чем предусмотрено договором; несоблю | B143: 23.3.1.7.
A144: Предоставление государственного (муниципального) имущества в аренду и субаренду без согласия собственника, без заключения договоров или без их регистрации в установленном порядке. | B144: 23.3.1.6.
A145: Реализация государственной (муниципальной) собственности с получением меньших, чем было возможно, средств (в т.ч. реализация государственной собственности по заниженной стоимости, снижение стоимости реализуемого имущества вследствие естественной убыл | B145: 23.3.1.14.
A146: Средства, подлежащие перечислению в доход бюджета в виде платы от найма жилых помещений не учитывались в доходах местного бюджета | B146: 23.1.1.14.
A147: Излишки материальных ценностей и денежных средств | B147: 24
A148: Излишки товарно-материальных ценностей, денежных средств и бланков строгой отчетности. | B148: 24.2.2.56.
A149: Наличие неучтенного, неоприходованного в установленном порядке государственного (муниципального) имущества. | B149: 24.3.1.4.
A150: Неправомерное расходование денежных средств и материальных ресурсов | B150: 25
A151: Излишнее списание продуктов питания вследствие неверного применения норм естественной убыли | B151: 25.2.2.16.
A152: Безвозмездная передача государственного (муниципального) имущества (собственности) при отсутствии достаточных на то оснований. Передача имущества другим юридическим и физическим лицам без разрешения собственника. | B152: 25.3.1.13.
A153: Безвозмездная передача государственного (муниципального) имущества (собственности) при отсутствии достаточных на то оснований. Передача имущества другим юридическим и физическим лицам без разрешения собственника. Неправомерная передача особо ценного имущества автономными и бюджетными учреждениями | B153: 25.3.1.13.1.
A154: Выдача подотчетных сумм лицам, не работающим в учреждении. | B154: 25.2.2.23.
A155: Выделение главными распорядителями, распорядителями бюджетных средств и направление бюджетным учреждениям средств бюджета Республики Башкортостан и муниципальных бюджетов в нарушение казначейской системы исполнения бюджета или на иные счета получателей бюджетных средств. | B155: 25.1.2.4.
A156: Выделение и направление средств бюджетной системы организациям, учредительными документами которых не предусмотрено осуществление соответствующей деятельности. | B156: 25.1.2.34.
A157: Другие нарушения при осуществлении бюджетными учреждениями предпринимательской и иной приносящей доход деятельности. | B157: 25.5.2.9.
A158: Другие нарушения при распоряжении государственным (муниципальным) имуществом | B158: 25.3.1.22.
A159: Другие нарушения при распоряжении государственным (муниципальным) имуществом (не оприходованное имущество, не запущено в эксплуатацию и др. нарушения по имуществу, выявленных в рамках проверки вопросов ч.8 ст. 99 Закона о контрактной системе) | B159: 25.3.1.22.1.
A160: Другие нарушения, влекущие правонарушения в сфере исполнения бюджета по расходам. | B160: 25.1.2.36.
A161: Другие неправомерные нарушения при использовании субсидии, выделенных на содержание автономного и бюджетного учреждения | B161: 25.2.2.53.2.
A162: Другие неправомерные нарушения при использовании субсидии, выделенных на содержание автономного учреждения . Невыполнение государственных (муниципальных) заданий | B162: 25.2.2.53.3.
A163: Другие неправомерные нарушения при использовании субсидии, выделенных на содержание бюджетного учреждения . Невыполнение государственных (муниципальных) заданий | B163: 25.2.2.53.4.
A164: Другие неправомерные нарушения, а именно переплата и недоплатат в части компенсационных выплат (за метод литературу, коммунальных услуг) | B164: 25.2.2.53.1.
A165: Другие неправомерные нарушения. | B165: 25.2.2.53.
A166: Другие неправомерные нарушения. Нарушения в использовании средств, выделенныхна реализацию республиканской адресной программы по проведению капитального ремонта многоквартирных домов | B166: 25.2.2.53.7.
A167: Другие неправомерные нарушения. Не принятие мер по возврату бюджетныхх средств, выделенных на софинансирование расходов в МО и ГО | B167: 25.2.2.53.9.
A168: Другие неправомерные нарушения. Неправомерные расходы средств, выделенных на реализацию адресной программы Республики Башкортостан на период 2011 - 2015 годов по замене и модернизации лифтов, отработавших нормативный срок службы. | B168: 25.2.2.53.5.
A169: Другие неправомерные нарушения.Нарушения в использвании средств, выделенных на софинансирование расходов по модернизации систем наружного освещения населенных пунктов Республики Башкортостан на 2011–2015 годы. | B169: 25.2.2.53.6.
A170: Завышение лимитированных затрат, удорожающих коэффициентов при выполнении ремонтно-строительных работ. | B170: 25.2.2.33.
A171: Завышение объемных показателей деятельности учреждения, приводящее к неправильному определению размера оплаты труда руководителей. | B171: 25.2.2.10.
A172: Излишнее либо неправомерное начисление отпускных (основные и дополнительные отпуска) и компенсации за неиспользованный отпуск, в том числе неправомерная выплата отпускных сотрудникам, отозванным из отпуска (начисление заработной платы и отпускных за один и тот же период), начисление отпускных в результате неверного расчета дней или неверного применения коэффициента с учетом начислений на выплаты по оплате труда. | B172: 25.2.2.6.
A173: Излишнее либо неправомерное начисление пособий по временной нетрудоспособности (в том числе пособий по уходу за ребенком, по беременности и родам и пр.). | B173: 25.2.2.9.
A174: Излишнее списание горюче-смазочных материалов вследствие применения завышенных (неправомерных) норм списания. | B174: 25.2.2.28.
A175: Излишнее списание продуктов питания вследствие завышения количества питающихся | B175: 25.2.2.17.
A176: Излишнее списание продуктов питания вследствие применения завышенных (необоснованных) норм | B176: 25.2.2.15.
A177: Излишняя (неправомерная) выплата заработной платы при внутреннем совмещении, а так же специалистам, работающим в учреждении по совместительству с учетом начислений на выплаты по оплате труда. | B177: 25.2.2.5.
A178: Иные нарушения в части оплаты труда, пособий и единого социального налога | B178: 25.2.2.11.
A179: Иные нарушения в части расчетов с учащимися и студентами. | B179: 25.2.2.14.
A180: Иные нарушения в части содержания автотранспорта. | B180: 25.2.2.30.
A181: Иные нарушения в части списания подотчетных сумм. | B181: 25.2.2.25.
A182: Иные нарушения в части списания продуктов питания. | B182: 25.2.2.19.
A183: Иные нарушения при расходовании средств в результате завышения стоимости и объемов выполненных работ, повторного выполнения работ на тех же объектах. Не соблюдение периодичности проведения капитального ремонта. | B183: 25.2.2.38.
A184: Использование бюджетных средств на оплату коммунальных услуг, оказанных сторонним потребителям, без соответствующего возмещения данных расходов. | B184: 25.2.2.41.
A185: Использование бюджетных средств на оплату личных расходов работников учреждения. | B185: 25.2.2.51.
A186: Использование государственной (муниципальной) собственности не по ее назначению и не в соответствии с целями ее приобретения. | B186: 25.3.1.5.
A187: Использование государственной (муниципальной) собственности не по ее назначению и не в соответствии с целями ее приобретения. | B187: 25.3.1.5.
A188: Использование средств на проведение текущего ремонта в качестве оплаты работ по капитальному ремонту и наоборот вследствие неверной классификации видов и состава работ. | B188: 25.2.2.34.
A189: Компенсация суточных по однодневным командировкам. | B189: 25.2.2.22.
A190: Направление средств, полученных от предпринимательской и иной приносящей доход деятельности, на цели, не предусмотренные нормативными правовыми актами и разрешительными документами. | B190: 25.5.2.1.
A191: Нарушение по условиям соглашений в части софинансирования соответствующих обязательств за счет средств местного бюджета (если предусмотрено по условиям соглашения, порядка, договор, НПА возврат при нарушении) | B191: 25.2.2.53.8.
A192: Нарушение порядка размещения бюджетных средств на банковских депозитах или передачи их в доверительное управление.Неэффективное размещение государственных средств в кредитных организациях. | B192: 25.1.2.33.
A193: Нарушение правил ответственного хранения государственных (муниципальных) материальных ценностей (ненадлежащее хранение) и их эксплуатации, непринятие мер по обеспечению сохранности государственной (муниципальной) собственности. | B193: 25.3.1.2.
A194: Нарушения в расчетах по оплате труда по договорам гражданско-правового характера, в том числе по завышенным тарифам с учетом начислений на выплаты по оплате труда (за исключением отчислений в фонд социального страхования и страховых взносов от несчастных случаев). | B194: 25.2.2.7.
A195: Начисление выплат по заработной плате (окладов, надбавок, доплат, премий), не предусмотренных действующим законодательством, трудовыми договорами или соотвествующими распорядительными документами либо в размерах, превышающих размеры, установленные действующим законодательством (в том числе завышение окладов, ставок, разрядов по оплате труда), с учетом начислений на выплаты по оплате труда. | B195: 25.2.2.3.
A196: Начисление выплат по заработной плате без учета фактически отработанного времени (в том числе за неотработанные часы) и фактического исполнения работником должностных обязанностей с учетом начислений на выплаты по оплате труда. | B196: 25.2.2.4.
A197: Начисления и выплаты стипендий, компенсаций и др. учащимся, студентам (в том числе обучаемым на договорной основе с полным возмещением затрат), учащимся (студентам) - сиротам и оставшимся без попечения родителей с нарушением действующего законодательства. | B197: 25.2.2.13.
A198: Невостребование с работника бюджетного учреждения - подотчетного лица задолженности по бюджетным средствам, выданным ему в подотчет. | B198: 25.2.2.24.
A199: Незаконное предоставление ссуды физическим лицам | B199: 25.2.2.43.
A200: Необоснованное начисление единого социального налога и налога на доходы физических лиц и авансовое перечисление платежей в качестве оплаты единого социального налога и налога на доходы физических лиц за пределами финансового года. | B200: 25.2.2.8.
... 118 more rows
